Department Family,Entity,Date Paid,Expense Type,Expense Area,Supplier,Transaction Number,Amount (�),Supplier VAT Registration Number
BEIS,Met Office,17/07/2019,03 STAFF COSTS T&S,OPERATIONS,CARTUS FINANCING LTD,430310,125.24,768489458
BEIS,Met Office,30/07/2019,03 STAFF COSTS T&S,OPERATIONS,CARTUS LTD,425032,-707.4,768489458
BEIS,Met Office,24/07/2019,03 STAFF COSTS T&S,BUSINESS GROUP,CARTUS LTD,426727,1073.26,768489458
BEIS,Met Office,30/07/2019,03 STAFF COSTS T&S,OPERATIONS,CARTUS LTD,426735,180,768489458
BEIS,Met Office,24/07/2019,03 STAFF COSTS T&S,BUSINESS GROUP,CARTUS LTD,428201,95,768489458
BEIS,Met Office,30/07/2019,03 STAFF COSTS T&S,OPERATIONS,CARTUS LTD,428225,95,768489458
BEIS,Met Office,01/07/2019,03 STAFF COSTS T&S,OPERATIONS,CARTUS LTD,429687,180,768489458
BEIS,Met Office,01/07/2019,03 STAFF COSTS T&S,OPERATIONS,CARTUS LTD,429688,3003.2,768489458
BEIS,Met Office,02/07/2019,03 STAFF COSTS T&S,OPERATIONS,CARTUS LTD,429691,295,768489458
BEIS,Met Office,01/07/2019,03 STAFF COSTS T&S,OPERATIONS,CARTUS LTD,429692,180,768489458
BEIS,Met Office,01/07/2019,03 STAFF COSTS T&S,OPERATIONS,CARTUS LTD,429693,180,768489458
BEIS,Met Office,01/07/2019,03 STAFF COSTS T&S,OPERATIONS,CARTUS LTD,429694,328.56,768489458
BEIS,Met Office,01/07/2019,03 STAFF COSTS T&S,OPERATIONS,CARTUS LTD,429696,149,768489458
BEIS,Met Office,05/07/2019,03 STAFF COSTS T&S,OPERATIONS,CARTUS LTD,429701,588,768489458
BEIS,Met Office,05/07/2019,03 STAFF COSTS T&S,OPERATIONS,CARTUS LTD,429702,20540,768489458
BEIS,Met Office,16/07/2019,03 STAFF COSTS T&S,OPERATIONS,CARTUS LTD,430519,2211.95,768489458
BEIS,Met Office,16/07/2019,03 STAFF COSTS T&S,OPERATIONS,CARTUS LTD,430521,1516.6,768489458
BEIS,Met Office,24/07/2019,03 STAFF COSTS T&S,BUSINESS GROUP,CARTUS LTD,430523,335,768489458
BEIS,Met Office,30/07/2019,03 STAFF COSTS T&S,OPERATIONS,CARTUS LTD,430524,3191,768489458
BEIS,Met Office,16/07/2019,03 STAFF COSTS T&S,OPERATIONS,CARTUS LTD,430579,1002.87,768489458
BEIS,Met Office,24/07/2019,03 STAFF COSTS T&S,OPERATIONS,CARTUS LTD,430891,389.45,768489458
BEIS,Met Office,30/07/2019,03 STAFF COSTS T&S,OPERATIONS,CARTUS LTD,430921,454.04,768489458
BEIS,Met Office,09/07/2019,03 STAFF COSTS T&S,OPERATIONS,CHARLIE'S TRAVEL LTD,429911,848,783848277
BEIS,Met Office,05/07/2019,03 STAFF COSTS T&S,CHIEF FINANCIAL OFFICER,ENTERPRISE RENT A CAR UK LTD,429056,256.82,215557314
BEIS,Met Office,02/07/2019,03 STAFF COSTS T&S,CHIEF FINANCIAL OFFICER,ENTERPRISE RENT A CAR UK LTD,429554,146.2,215557314
BEIS,Met Office,04/07/2019,03 STAFF COSTS T&S,CHIEF FINANCIAL OFFICER,ENTERPRISE RENT A CAR UK LTD,429948,2726.25,215557314
BEIS,Met Office,09/07/2019,03 STAFF COSTS T&S,CHIEF FINANCIAL OFFICER,ENTERPRISE RENT A CAR UK LTD,430231,2209.11,215557314
BEIS,Met Office,11/07/2019,03 STAFF COSTS T&S,CHIEF FINANCIAL OFFICER,ENTERPRISE RENT A CAR UK LTD,430388,87.72,215557314
BEIS,Met Office,16/07/2019,03 STAFF COSTS T&S,CHIEF FINANCIAL OFFICER,ENTERPRISE RENT A CAR UK LTD,430550,2641.54,215557314
BEIS,Met Office,24/07/2019,03 STAFF COSTS T&S,CHIEF FINANCIAL OFFICER,ENTERPRISE RENT A CAR UK LTD,430833,3131.45,215557314
BEIS,Met Office,05/07/2019,03 STAFF COSTS T&S,OPERATIONS,FALKLAND ISLAND COMPANY LTD,429669,1650,N/A
BEIS,Met Office,11/07/2019,03 STAFF COSTS T&S,OPERATIONS,FALKLAND ISLAND COMPANY LTD,430051,126.3,N/A
BEIS,Met Office,11/07/2019,03 STAFF COSTS T&S,OPERATIONS,FALKLAND ISLAND COMPANY LTD,430052,650,N/A
BEIS,Met Office,11/07/2019,03 STAFF COSTS T&S,OPERATIONS,FALKLAND ISLAND COMPANY LTD,430060,330,N/A
BEIS,Met Office,22/07/2019,03 STAFF COSTS T&S,OPERATIONS,FALKLAND ISLAND COMPANY LTD,430720,650,N/A
BEIS,Met Office,22/07/2019,03 STAFF COSTS T&S,OPERATIONS,FALKLAND ISLAND COMPANY LTD,430721,700,N/A
BEIS,Met Office,22/07/2019,03 STAFF COSTS T&S,OPERATIONS,FALKLAND ISLAND COMPANY LTD,430722,700,N/A
BEIS,Met Office,18/07/2019,03 STAFF COSTS T&S,GOVERNMENT SERVICES,FCO,430578,54.07,888813560
BEIS,Met Office,10/07/2019,03 STAFF COSTS T&S,CHIEF FINANCIAL OFFICER,MAWASEM LTD,430135,204987.12,197694731
BEIS,Met Office,03/07/2019,03 STAFF COSTS T&S,CHIEF FINANCIAL OFFICER,RAINBOW CITY TAXIS,429842,438.9,724295039
BEIS,Met Office,11/07/2019,03 STAFF COSTS T&S,SCIENCE,UNIVERSITY OF EXETER,427678,296.1,142047795
BEIS,Met Office,15/07/2019,04 CONTRACTORS,OPERATIONS,AFBI,430506,50,252677738
BEIS,Met Office,15/07/2019,04 CONTRACTORS,OPERATIONS,REDACTED PERSONAL DATA,430507,1893.34,267253251
BEIS,Met Office,09/07/2019,04 CONTRACTORS,TECHNOLOGY,FDM GROUP LIMITED,430233,2700,583540529
BEIS,Met Office,24/07/2019,04 CONTRACTORS,TECHNOLOGY,FDM GROUP LIMITED,430766,3780,583540529
BEIS,Met Office,24/07/2019,04 CONTRACTORS,TECHNOLOGY,FDM GROUP LIMITED,430767,4050,583540529
BEIS,Met Office,24/07/2019,04 CONTRACTORS,TECHNOLOGY,FDM GROUP LIMITED,430768,5400,583540529
BEIS,Met Office,08/07/2019,04 CONTRACTORS,TECHNOLOGY,GCS IT RECRUITMENT SPECIALISTS LTD,430188,14625,896156575
BEIS,Met Office,19/07/2019,04 CONTRACTORS,TECHNOLOGY,GCS IT RECRUITMENT SPECIALISTS LTD,430675,6825,896156575
BEIS,Met Office,17/07/2019,04 CONTRACTORS,CORPORATE,HAYS SPECIALIST RECRUITMENT LTD,428063,372.06,773695871
BEIS,Met Office,05/07/2019,04 CONTRACTORS,CORPORATE,HAYS SPECIALIST RECRUITMENT LTD,430056,1067.83,773695871
BEIS,Met Office,05/07/2019,04 CONTRACTORS,CORPORATE,HAYS SPECIALIST RECRUITMENT LTD,430058,658.25,773695871
BEIS,Met Office,08/07/2019,04 CONTRACTORS,BUSINESS GROUP,HAYS SPECIALIST RECRUITMENT LTD,430132,658.24,773695871
BEIS,Met Office,11/07/2019,04 CONTRACTORS,CORPORATE,HAYS SPECIALIST RECRUITMENT LTD,430359,658.25,773695871
BEIS,Met Office,11/07/2019,04 CONTRACTORS,CORPORATE,HAYS SPECIALIST RECRUITMENT LTD,430365,1067.82,773695871
BEIS,Met Office,11/07/2019,04 CONTRACTORS,BUSINESS GROUP,HAYS SPECIALIST RECRUITMENT LTD,430366,653.79,773695871
BEIS,Met Office,19/07/2019,04 CONTRACTORS,CORPORATE,HAYS SPECIALIST RECRUITMENT LTD,430724,1067.82,773695871
BEIS,Met Office,19/07/2019,04 CONTRACTORS,BUSINESS GROUP,HAYS SPECIALIST RECRUITMENT LTD,430725,658.24,773695871
BEIS,Met Office,19/07/2019,04 CONTRACTORS,CORPORATE,HAYS SPECIALIST RECRUITMENT LTD,430726,533.72,773695871
BEIS,Met Office,25/07/2019,04 CONTRACTORS,BUSINESS GROUP,HAYS SPECIALIST RECRUITMENT LTD,430918,1530,773695871
BEIS,Met Office,25/07/2019,04 CONTRACTORS,BUSINESS GROUP,HAYS SPECIALIST RECRUITMENT LTD,430919,680,773695871
BEIS,Met Office,29/07/2019,04 CONTRACTORS,BUSINESS GROUP,HAYS SPECIALIST RECRUITMENT LTD,430981,653.79,773695871
BEIS,Met Office,29/07/2019,04 CONTRACTORS,BUSINESS GROUP,HAYS SPECIALIST RECRUITMENT LTD,430982,408,773695871
BEIS,Met Office,29/07/2019,04 CONTRACTORS,CORPORATE,HAYS SPECIALIST RECRUITMENT LTD,430983,533.72,773695871
BEIS,Met Office,03/07/2019,04 CONTRACTORS,BUSINESS GROUP,JOBSEEKERS RECRUITMENT SERVICES LTD,429899,640.84,130 1297 14
BEIS,Met Office,03/07/2019,04 CONTRACTORS,BUSINESS GROUP,JOBSEEKERS RECRUITMENT SERVICES LTD,429901,814,130 1297 14
BEIS,Met Office,03/07/2019,04 CONTRACTORS,CORPORATE,JOBSEEKERS RECRUITMENT SERVICES LTD,429902,1074.48,130 1297 14
BEIS,Met Office,03/07/2019,04 CONTRACTORS,BUSINESS GROUP,JOBSEEKERS RECRUITMENT SERVICES LTD,429903,552.04,130 1297 14
BEIS,Met Office,03/07/2019,04 CONTRACTORS,CORPORATE,JOBSEEKERS RECRUITMENT SERVICES LTD,429904,640.84,130 1297 14
BEIS,Met Office,03/07/2019,04 CONTRACTORS,GOVERNMENT SERVICES,JOBSEEKERS RECRUITMENT SERVICES LTD,429905,640.84,130 1297 14
BEIS,Met Office,03/07/2019,04 CONTRACTORS,OPERATIONS,JOBSEEKERS RECRUITMENT SERVICES LTD,429910,389.7,130 1297 14
BEIS,Met Office,03/07/2019,04 CONTRACTORS,CORPORATE,JOBSEEKERS RECRUITMENT SERVICES LTD,429919,640.84,130 1297 14
BEIS,Met Office,11/07/2019,04 CONTRACTORS,CORPORATE,JOBSEEKERS RECRUITMENT SERVICES LTD,430290,1030.92,130 1297 14
BEIS,Met Office,11/07/2019,04 CONTRACTORS,CORPORATE,JOBSEEKERS RECRUITMENT SERVICES LTD,430291,640.84,130 1297 14
BEIS,Met Office,11/07/2019,04 CONTRACTORS,BUSINESS GROUP,JOBSEEKERS RECRUITMENT SERVICES LTD,430292,814,130 1297 14
BEIS,Met Office,11/07/2019,04 CONTRACTORS,OPERATIONS,JOBSEEKERS RECRUITMENT SERVICES LTD,430293,424.34,130 1297 14
BEIS,Met Office,11/07/2019,04 CONTRACTORS,GOVERNMENT SERVICES,JOBSEEKERS RECRUITMENT SERVICES LTD,430294,389.7,130 1297 14
BEIS,Met Office,11/07/2019,04 CONTRACTORS,BUSINESS GROUP,JOBSEEKERS RECRUITMENT SERVICES LTD,430295,640.84,130 1297 14
BEIS,Met Office,11/07/2019,04 CONTRACTORS,CORPORATE,JOBSEEKERS RECRUITMENT SERVICES LTD,430296,640.84,130 1297 14
BEIS,Met Office,11/07/2019,04 CONTRACTORS,BUSINESS GROUP,JOBSEEKERS RECRUITMENT SERVICES LTD,430297,552.04,130 1297 14
BEIS,Met Office,17/07/2019,04 CONTRACTORS,GOVERNMENT SERVICES,JOBSEEKERS RECRUITMENT SERVICES LTD,430594,640.84,130 1297 14
BEIS,Met Office,17/07/2019,04 CONTRACTORS,BUSINESS GROUP,JOBSEEKERS RECRUITMENT SERVICES LTD,430595,640.84,130 1297 14
BEIS,Met Office,17/07/2019,04 CONTRACTORS,CORPORATE,JOBSEEKERS RECRUITMENT SERVICES LTD,430596,597.54,130 1297 14
BEIS,Met Office,17/07/2019,04 CONTRACTORS,CORPORATE,JOBSEEKERS RECRUITMENT SERVICES LTD,430597,609.84,130 1297 14
BEIS,Met Office,17/07/2019,04 CONTRACTORS,BUSINESS GROUP,JOBSEEKERS RECRUITMENT SERVICES LTD,430606,552.04,130 1297 14
BEIS,Met Office,17/07/2019,04 CONTRACTORS,OPERATIONS,JOBSEEKERS RECRUITMENT SERVICES LTD,430607,640.84,130 1297 14
BEIS,Met Office,22/07/2019,04 CONTRACTORS,OPERATIONS,JOBSEEKERS RECRUITMENT SERVICES LTD,430731,640.84,130 1297 14
BEIS,Met Office,25/07/2019,04 CONTRACTORS,BUSINESS GROUP,JOBSEEKERS RECRUITMENT SERVICES LTD,430901,640.84,130 1297 14
BEIS,Met Office,25/07/2019,04 CONTRACTORS,CORPORATE,JOBSEEKERS RECRUITMENT SERVICES LTD,430902,640.84,130 1297 14
BEIS,Met Office,25/07/2019,04 CONTRACTORS,GOVERNMENT SERVICES,JOBSEEKERS RECRUITMENT SERVICES LTD,430903,640.84,130 1297 14
BEIS,Met Office,25/07/2019,04 CONTRACTORS,CORPORATE,JOBSEEKERS RECRUITMENT SERVICES LTD,430904,1089,130 1297 14
BEIS,Met Office,25/07/2019,04 CONTRACTORS,CORPORATE,JOBSEEKERS RECRUITMENT SERVICES LTD,430905,640.84,130 1297 14
BEIS,Met Office,25/07/2019,04 CONTRACTORS,BUSINESS GROUP,JOBSEEKERS RECRUITMENT SERVICES LTD,430906,552.04,130 1297 14
BEIS,Met Office,25/07/2019,04 CONTRACTORS,BUSINESS GROUP,JOBSEEKERS RECRUITMENT SERVICES LTD,430907,814,130 1297 14
BEIS,Met Office,25/07/2019,04 CONTRACTORS,OPERATIONS,JOBSEEKERS RECRUITMENT SERVICES LTD,430913,640.84,130 1297 14
BEIS,Met Office,31/07/2019,04 CONTRACTORS,CORPORATE,JOBSEEKERS RECRUITMENT SERVICES LTD,431180,987.36,130 1297 14
BEIS,Met Office,31/07/2019,04 CONTRACTORS,CORPORATE,JOBSEEKERS RECRUITMENT SERVICES LTD,431181,640.84,130 1297 14
BEIS,Met Office,31/07/2019,04 CONTRACTORS,BUSINESS GROUP,JOBSEEKERS RECRUITMENT SERVICES LTD,431182,640.84,130 1297 14
BEIS,Met Office,31/07/2019,04 CONTRACTORS,CORPORATE,JOBSEEKERS RECRUITMENT SERVICES LTD,431183,640.84,130 1297 14
BEIS,Met Office,31/07/2019,04 CONTRACTORS,GOVERNMENT SERVICES,JOBSEEKERS RECRUITMENT SERVICES LTD,431184,606.2,130 1297 14
BEIS,Met Office,31/07/2019,04 CONTRACTORS,BUSINESS GROUP,JOBSEEKERS RECRUITMENT SERVICES LTD,431185,552.04,130 1297 14
BEIS,Met Office,31/07/2019,04 CONTRACTORS,BUSINESS GROUP,JOBSEEKERS RECRUITMENT SERVICES LTD,431186,814,130 1297 14
BEIS,Met Office,18/07/2019,04 CONTRACTORS,STRATEGIC INVESTMENT,OUTSOURCE UK LIMITED,430528,8964.01,576118722
BEIS,Met Office,18/07/2019,04 CONTRACTORS,TECHNOLOGY,OUTSOURCE UK LIMITED,430530,9500,576118722
BEIS,Met Office,18/07/2019,04 CONTRACTORS,STRATEGIC INVESTMENT,OUTSOURCE UK LIMITED,430532,8200,576118722
BEIS,Met Office,18/07/2019,04 CONTRACTORS,STRATEGIC INVESTMENT,OUTSOURCE UK LIMITED,430533,8430.08,576118722
BEIS,Met Office,18/07/2019,04 CONTRACTORS,CHIEF FINANCIAL OFFICER,OUTSOURCE UK LIMITED,430534,5362.5,576118722
BEIS,Met Office,18/07/2019,04 CONTRACTORS,TECHNOLOGY,OUTSOURCE UK LIMITED,430535,10978.2,576118722
BEIS,Met Office,18/07/2019,04 CONTRACTORS,CHIEF FINANCIAL OFFICER,OUTSOURCE UK LIMITED,430536,9793.17,576118722
BEIS,Met Office,18/07/2019,04 CONTRACTORS,TECHNOLOGY,OUTSOURCE UK LIMITED,430537,8695.6,576118722
BEIS,Met Office,18/07/2019,04 CONTRACTORS,OPERATIONS,OUTSOURCE UK LIMITED,430538,9329.97,576118722
BEIS,Met Office,18/07/2019,04 CONTRACTORS,TECHNOLOGY,OUTSOURCE UK LIMITED,430539,10842.35,576118722
BEIS,Met Office,02/07/2019,04 CONTRACTORS,CORPORATE,QUALSERV CONSULTING LTD,429775,10549.92,719067718
BEIS,Met Office,02/07/2019,04 CONTRACTORS,STRATEGIC INVESTMENT,QUALSERV CONSULTING LTD,429782,12344.4,719067718
BEIS,Met Office,02/07/2019,04 CONTRACTORS,OPERATIONS,QUALSERV CONSULTING LTD,429788,6893.56,719067718
BEIS,Met Office,02/07/2019,04 CONTRACTORS,TECHNOLOGY,QUALSERV CONSULTING LTD,429828,10989.68,719067718
BEIS,Met Office,02/07/2019,04 CONTRACTORS,STRATEGIC INVESTMENT,QUALSERV CONSULTING LTD,429840,8431.44,719067718
BEIS,Met Office,02/07/2019,04 CONTRACTORS,TECHNOLOGY,QUALSERV CONSULTING LTD,429847,7104.24,719067718
BEIS,Met Office,03/07/2019,04 CONTRACTORS,TECHNOLOGY,QUALSERV CONSULTING LTD,429938,9876.66,719067718
BEIS,Met Office,04/07/2019,04 CONTRACTORS,STRATEGIC INVESTMENT,QUALSERV CONSULTING LTD,429992,11726.16,719067718
BEIS,Met Office,05/07/2019,04 CONTRACTORS,STRATEGIC INVESTMENT,QUALSERV CONSULTING LTD,430110,11888.64,719067718
BEIS,Met Office,31/07/2019,04 CONTRACTORS,STRATEGIC INVESTMENT,RECRUITMENT ZONE LTD,429431,11591.36,703581256
BEIS,Met Office,18/07/2019,04 CONTRACTORS,STRATEGIC INVESTMENT,RECRUITMENT ZONE LTD,430529,8964.01,703581256
BEIS,Met Office,18/07/2019,04 CONTRACTORS,BUSINESS GROUP,RECRUITMENT ZONE LTD,430531,8903.2,703581256
BEIS,Met Office,30/07/2019,04 CONTRACTORS,STRATEGIC INVESTMENT,RECRUITMENT ZONE LTD,430819,-526.88,703581256
BEIS,Met Office,30/07/2019,04 CONTRACTORS,TECHNOLOGY,RECRUITMENT ZONE LTD,431051,6873.88,703581256
BEIS,Met Office,10/07/2019,04 CONTRACTORS,TECHNOLOGY,REED,427175,7991.2,835515525
BEIS,Met Office,25/07/2019,04 CONTRACTORS,TECHNOLOGY,REED,430437,-1749.5,835515525
BEIS,Met Office,25/07/2019,04 CONTRACTORS,TECHNOLOGY,REED,430917,9120,835515525
BEIS,Met Office,30/07/2019,04 CONTRACTORS,TECHNOLOGY,REED,431119,8400,835515525
BEIS,Met Office,31/07/2019,04 CONTRACTORS,TECHNOLOGY,REED,431145,12467.4,835515525
BEIS,Met Office,04/07/2019,04 CONTRACTORS,BUSINESS GROUP,SOLOS CONSULTANTS LTD,429962,9394,812035476
BEIS,Met Office,04/07/2019,04 CONTRACTORS,CORPORATE,SOLOS CONSULTANTS LTD,429963,4180,812035476
BEIS,Met Office,04/07/2019,04 CONTRACTORS,GOVERNMENT SERVICES,SOLOS CONSULTANTS LTD,429964,7644,812035476
BEIS,Met Office,04/07/2019,04 CONTRACTORS,TECHNOLOGY,SOLOS CONSULTANTS LTD,429965,4680,812035476
BEIS,Met Office,04/07/2019,04 CONTRACTORS,GOVERNMENT SERVICES,SOLOS CONSULTANTS LTD,429966,5999.4,812035476
BEIS,Met Office,04/07/2019,04 CONTRACTORS,OPERATIONS,SOLOS CONSULTANTS LTD,429967,6890,812035476
BEIS,Met Office,04/07/2019,04 CONTRACTORS,STRATEGIC INVESTMENT,SOLOS CONSULTANTS LTD,429968,7788.48,812035476
BEIS,Met Office,04/07/2019,04 CONTRACTORS,TECHNOLOGY,SOLOS CONSULTANTS LTD,429969,11745.8,812035476
BEIS,Met Office,04/07/2019,04 CONTRACTORS,TECHNOLOGY,SOLOS CONSULTANTS LTD,429970,8830.25,812035476
BEIS,Met Office,04/07/2019,04 CONTRACTORS,TECHNOLOGY,SOLOS CONSULTANTS LTD,429971,6084,812035476
BEIS,Met Office,04/07/2019,04 CONTRACTORS,CHIEF FINANCIAL OFFICER,SOLOS CONSULTANTS LTD,429972,5478.08,812035476
BEIS,Met Office,04/07/2019,04 CONTRACTORS,GOVERNMENT SERVICES,SOLOS CONSULTANTS LTD,429973,5600,812035476
BEIS,Met Office,04/07/2019,04 CONTRACTORS,TECHNOLOGY,SOLOS CONSULTANTS LTD,429974,9360,812035476
BEIS,Met Office,04/07/2019,04 CONTRACTORS,TECHNOLOGY,SOLOS CONSULTANTS LTD,429975,4680,812035476
BEIS,Met Office,04/07/2019,04 CONTRACTORS,TECHNOLOGY,SOLOS CONSULTANTS LTD,429976,13877.6,812035476
BEIS,Met Office,04/07/2019,04 CONTRACTORS,CORPORATE,SOLOS CONSULTANTS LTD,429977,6797.92,812035476
BEIS,Met Office,04/07/2019,04 CONTRACTORS,STRATEGIC INVESTMENT,SOLOS CONSULTANTS LTD,429978,11998.8,812035476
BEIS,Met Office,04/07/2019,04 CONTRACTORS,OPERATIONS,SOLOS CONSULTANTS LTD,429979,2241.75,812035476
BEIS,Met Office,04/07/2019,04 CONTRACTORS,STRATEGIC INVESTMENT,SOLOS CONSULTANTS LTD,429980,17680,812035476
BEIS,Met Office,04/07/2019,04 CONTRACTORS,STRATEGIC INVESTMENT,SOLOS CONSULTANTS LTD,429981,7680.65,812035476
BEIS,Met Office,04/07/2019,04 CONTRACTORS,CORPORATE,SOLOS CONSULTANTS LTD,429982,8314.27,812035476
BEIS,Met Office,04/07/2019,04 CONTRACTORS,TECHNOLOGY,SOLOS CONSULTANTS LTD,429983,10277.58,812035476
BEIS,Met Office,04/07/2019,04 CONTRACTORS,CORPORATE,SOLOS CONSULTANTS LTD,429984,1738.4,812035476
BEIS,Met Office,04/07/2019,04 CONTRACTORS,STRATEGIC INVESTMENT,SOLOS CONSULTANTS LTD,429985,4800.53,812035476
BEIS,Met Office,04/07/2019,04 CONTRACTORS,TECHNOLOGY,SOLOS CONSULTANTS LTD,429986,11791.61,812035476
BEIS,Met Office,04/07/2019,04 CONTRACTORS,OPERATIONS,SOLOS CONSULTANTS LTD,429987,4270,812035476
BEIS,Met Office,04/07/2019,04 CONTRACTORS,STRATEGIC INVESTMENT,SOLOS CONSULTANTS LTD,429988,8198.4,812035476
BEIS,Met Office,04/07/2019,04 CONTRACTORS,TECHNOLOGY,SOLOS CONSULTANTS LTD,429989,14040,812035476
BEIS,Met Office,04/07/2019,04 CONTRACTORS,TECHNOLOGY,SOLOS CONSULTANTS LTD,429990,8745,812035476
BEIS,Met Office,04/07/2019,04 CONTRACTORS,TECHNOLOGY,SOLOS CONSULTANTS LTD,429990,1149.5,812035476
BEIS,Met Office,02/07/2019,04 CONTRACTORS,TECHNOLOGY,WA CONSULTANTS LTD,429715,10853.4,876328977
BEIS,Met Office,02/07/2019,04 CONTRACTORS,TECHNOLOGY,WA CONSULTANTS LTD,429716,10761,876328977
BEIS,Met Office,02/07/2019,04 CONTRACTORS,TECHNOLOGY,WA CONSULTANTS LTD,429717,10850,876328977
BEIS,Met Office,02/07/2019,04 CONTRACTORS,OPERATIONS,WA CONSULTANTS LTD,429812,6000,876328977
BEIS,Met Office,02/07/2019,04 CONTRACTORS,CHIEF FINANCIAL OFFICER,WA CONSULTANTS LTD,429813,7560,876328977
BEIS,Met Office,02/07/2019,04 CONTRACTORS,GOVERNMENT SERVICES,WA CONSULTANTS LTD,429815,22848.7,876328977
BEIS,Met Office,02/07/2019,04 CONTRACTORS,CHIEF FINANCIAL OFFICER,WA CONSULTANTS LTD,429816,4140,876328977
BEIS,Met Office,02/07/2019,04 CONTRACTORS,STRATEGIC INVESTMENT,WA CONSULTANTS LTD,429817,11890,876328977
BEIS,Met Office,02/07/2019,04 CONTRACTORS,TECHNOLOGY,WA CONSULTANTS LTD,429818,11115,876328977
BEIS,Met Office,02/07/2019,04 CONTRACTORS,SCIENCE,WA CONSULTANTS LTD,429820,12262.5,876328977
BEIS,Met Office,03/07/2019,04 CONTRACTORS,STRATEGIC INVESTMENT,WA CONSULTANTS LTD,429913,8400,876328977
BEIS,Met Office,03/07/2019,04 CONTRACTORS,OPERATIONS,WA CONSULTANTS LTD,429914,10450,876328977
BEIS,Met Office,03/07/2019,04 CONTRACTORS,STRATEGIC INVESTMENT,WA CONSULTANTS LTD,429916,9225,876328977
BEIS,Met Office,03/07/2019,04 CONTRACTORS,TECHNOLOGY,WA CONSULTANTS LTD,429917,11900,876328977
BEIS,Met Office,03/07/2019,04 CONTRACTORS,CORPORATE,WA CONSULTANTS LTD,429918,7011.36,876328977
BEIS,Met Office,12/07/2019,04 CONTRACTORS,STRATEGIC INVESTMENT,WA CONSULTANTS LTD,430373,9100,876328977
BEIS,Met Office,12/07/2019,04 CONTRACTORS,CHIEF FINANCIAL OFFICER,WA CONSULTANTS LTD,430377,6710.55,876328977
BEIS,Met Office,18/07/2019,04 CONTRACTORS,GOVERNMENT SERVICES,WA CONSULTANTS LTD,430628,3436.8,876328977
BEIS,Met Office,18/07/2019,04 CONTRACTORS,GOVERNMENT SERVICES,WA CONSULTANTS LTD,430628,3475.52,876328977
BEIS,Met Office,19/07/2019,04 CONTRACTORS,TECHNOLOGY,WA CONSULTANTS LTD,430772,11625,876328977
BEIS,Met Office,19/07/2019,04 CONTRACTORS,TECHNOLOGY,WA CONSULTANTS LTD,430773,8627.5,876328977
BEIS,Met Office,25/07/2019,04 CONTRACTORS,GOVERNMENT SERVICES,WA CONSULTANTS LTD,430882,1350,876328977
BEIS,Met Office,30/07/2019,04 CONTRACTORS,OPERATIONS,WA CONSULTANTS LTD,431058,8000,876328977
BEIS,Met Office,30/07/2019,04 CONTRACTORS,TECHNOLOGY,WA CONSULTANTS LTD,431059,10853.4,876328977
BEIS,Met Office,30/07/2019,04 CONTRACTORS,OPERATIONS,WA CONSULTANTS LTD,431060,10450,876328977
BEIS,Met Office,30/07/2019,04 CONTRACTORS,TECHNOLOGY,WA CONSULTANTS LTD,431061,10761,876328977
BEIS,Met Office,30/07/2019,04 CONTRACTORS,CHIEF FINANCIAL OFFICER,WA CONSULTANTS LTD,431062,10260,876328977
BEIS,Met Office,30/07/2019,04 CONTRACTORS,STRATEGIC INVESTMENT,WA CONSULTANTS LTD,431109,6300,876328977
BEIS,Met Office,30/07/2019,04 CONTRACTORS,GOVERNMENT SERVICES,WA CONSULTANTS LTD,431110,17719.4,876328977
BEIS,Met Office,30/07/2019,04 CONTRACTORS,TECHNOLOGY,WA CONSULTANTS LTD,431111,8330,876328977
BEIS,Met Office,31/07/2019,04 CONTRACTORS,CHIEF FINANCIAL OFFICER,WA CONSULTANTS LTD,431160,4297.5,876328977
BEIS,Met Office,31/07/2019,04 CONTRACTORS,GOVERNMENT SERVICES,WA CONSULTANTS LTD,431161,484,876328977
BEIS,Met Office,31/07/2019,04 CONTRACTORS,TECHNOLOGY,WA CONSULTANTS LTD,431162,9300,876328977
BEIS,Met Office,31/07/2019,04 CONTRACTORS,TECHNOLOGY,WA CONSULTANTS LTD,431163,5850,876328977
BEIS,Met Office,31/07/2019,04 CONTRACTORS,TECHNOLOGY,WA CONSULTANTS LTD,431168,2333.64,876328977
BEIS,Met Office,31/07/2019,04 CONTRACTORS,TECHNOLOGY,WA CONSULTANTS LTD,431169,11900,876328977
BEIS,Met Office,31/07/2019,04 CONTRACTORS,STRATEGIC INVESTMENT,WA CONSULTANTS LTD,431179,8645,876328977
BEIS,Met Office,12/07/2019,05 CONSULTANTS,STRATEGIC INVESTMENT,CMC PARTNERSHIP CONSULTANCY LTD,430306,18900,305803330
BEIS,Met Office,17/07/2019,05 CONSULTANTS,STRATEGIC INVESTMENT,Ernst & Young Llp,430661,99475,773831408
BEIS,Met Office,08/07/2019,06 ACCOMMODATION,CHIEF FINANCIAL OFFICER,A & J GARDEN SERVICES LTD,430046,210,190817003
BEIS,Met Office,08/07/2019,06 ACCOMMODATION,CHIEF FINANCIAL OFFICER,A & J GARDEN SERVICES LTD,430046,225,190817003
BEIS,Met Office,08/07/2019,06 ACCOMMODATION,CHIEF FINANCIAL OFFICER,A & J GARDEN SERVICES LTD,430046,225,190817003
BEIS,Met Office,08/07/2019,06 ACCOMMODATION,CHIEF FINANCIAL OFFICER,A & J GARDEN SERVICES LTD,430046,270,190817003
BEIS,Met Office,08/07/2019,06 ACCOMMODATION,CHIEF FINANCIAL OFFICER,A & J GARDEN SERVICES LTD,430046,270,190817003
BEIS,Met Office,08/07/2019,06 ACCOMMODATION,CHIEF FINANCIAL OFFICER,A & J GARDEN SERVICES LTD,430046,270,190817003
BEIS,Met Office,08/07/2019,06 ACCOMMODATION,CHIEF FINANCIAL OFFICER,A & J GARDEN SERVICES LTD,430046,225,190817003
BEIS,Met Office,08/07/2019,06 ACCOMMODATION,CHIEF FINANCIAL OFFICER,A & J GARDEN SERVICES LTD,430046,270,190817003
BEIS,Met Office,08/07/2019,06 ACCOMMODATION,CHIEF FINANCIAL OFFICER,A & J GARDEN SERVICES LTD,430046,270,190817003
BEIS,Met Office,08/07/2019,06 ACCOMMODATION,CHIEF FINANCIAL OFFICER,A & J GARDEN SERVICES LTD,430046,225,190817003
BEIS,Met Office,08/07/2019,06 ACCOMMODATION,CHIEF FINANCIAL OFFICER,A & J GARDEN SERVICES LTD,430046,225,190817003
BEIS,Met Office,08/07/2019,06 ACCOMMODATION,CHIEF FINANCIAL OFFICER,A & J GARDEN SERVICES LTD,430046,150,190817003
BEIS,Met Office,08/07/2019,06 ACCOMMODATION,CHIEF FINANCIAL OFFICER,A & J GARDEN SERVICES LTD,430046,270,190817003
BEIS,Met Office,08/07/2019,06 ACCOMMODATION,CHIEF FINANCIAL OFFICER,A & J GARDEN SERVICES LTD,430046,225,190817003
BEIS,Met Office,08/07/2019,06 ACCOMMODATION,CHIEF FINANCIAL OFFICER,ABOVE THE REST COMMERCIAL CLEANING LTD,429859,565,166969348
BEIS,Met Office,09/07/2019,06 ACCOMMODATION,GOVERNMENT SERVICES,Arup,430234,15647.63,524461265
BEIS,Met Office,17/07/2019,06 ACCOMMODATION,CHIEF FINANCIAL OFFICER,REDACTED PERSONAL DATA,430591,160,166458184
BEIS,Met Office,01/07/2019,06 ACCOMMODATION,CHIEF FINANCIAL OFFICER,Belfast International Airport Ltd,429700,238.75,617777601
BEIS,Met Office,03/07/2019,06 ACCOMMODATION,CHIEF FINANCIAL OFFICER,Belfast International Airport Ltd,429861,23953,617777601
BEIS,Met Office,30/07/2019,06 ACCOMMODATION,CHIEF FINANCIAL OFFICER,Belfast International Airport Ltd,431024,3326.24,617777601
BEIS,Met Office,31/07/2019,06 ACCOMMODATION,CHIEF FINANCIAL OFFICER,Biffa Waste Services Ltd,431142,169.5,537911627
BEIS,Met Office,04/07/2019,06 ACCOMMODATION,CHIEF FINANCIAL OFFICER,BPM GARDEN SERVICES,429944,865.86,-
BEIS,Met Office,09/07/2019,06 ACCOMMODATION,CHIEF FINANCIAL OFFICER,BRITISH GAS TRADING LTD,430146,6364.4,684966762
BEIS,Met Office,09/07/2019,06 ACCOMMODATION,CHIEF FINANCIAL OFFICER,BRITISH GAS TRADING LTD,430147,7635.87,684966762
BEIS,Met Office,17/07/2019,06 ACCOMMODATION,CHIEF FINANCIAL OFFICER,BRITISH GAS TRADING LTD,430508,5415.71,684966762
BEIS,Met Office,05/07/2019,06 ACCOMMODATION,CHIEF FINANCIAL OFFICER,BUCKS & MK FIRE AUTHORITY,430085,1944,824155836
BEIS,Met Office,16/07/2019,06 ACCOMMODATION,CHIEF FINANCIAL OFFICER,CALOR GAS LIMITED,430583,609.05,207610984
BEIS,Met Office,24/07/2019,06 ACCOMMODATION,CHIEF FINANCIAL OFFICER,CALOR GAS LIMITED,430842,34.25,207610984
BEIS,Met Office,24/07/2019,06 ACCOMMODATION,CHIEF FINANCIAL OFFICER,CALOR GAS LIMITED,430843,49.18,207610984
BEIS,Met Office,24/07/2019,06 ACCOMMODATION,CHIEF FINANCIAL OFFICER,CALOR GAS LIMITED,430844,34.25,207610984
BEIS,Met Office,24/07/2019,06 ACCOMMODATION,CHIEF FINANCIAL OFFICER,CALOR GAS LIMITED,430845,34.25,207610984
BEIS,Met Office,25/07/2019,06 ACCOMMODATION,CHIEF FINANCIAL OFFICER,CALOR GAS LIMITED,430846,19.61,207610984
BEIS,Met Office,24/07/2019,06 ACCOMMODATION,CHIEF FINANCIAL OFFICER,CALOR GAS LIMITED,430847,34.25,207610984
BEIS,Met Office,24/07/2019,06 ACCOMMODATION,CHIEF FINANCIAL OFFICER,CALOR GAS LIMITED,430848,34.25,207610984
BEIS,Met Office,03/07/2019,06 ACCOMMODATION,CHIEF FINANCIAL OFFICER,CARDIFF EXECUTIVE CENTRE LTD,429860,2470,864497378
BEIS,Met Office,05/07/2019,06 ACCOMMODATION,CHIEF FINANCIAL OFFICER,CARDIFF EXECUTIVE CENTRE LTD,430005,2470,864497378
BEIS,Met Office,05/07/2019,06 ACCOMMODATION,CHIEF FINANCIAL OFFICER,CBRE,430111,4076.83,863613615
BEIS,Met Office,26/07/2019,06 ACCOMMODATION,CHIEF FINANCIAL OFFICER,CBRE MANAGED SERVICES LTD,430153,143240.55,853936883
BEIS,Met Office,01/07/2019,06 ACCOMMODATION,CHIEF FINANCIAL OFFICER,CLEANING MATTERS BEDFORD LTD,429698,794,847592286
BEIS,Met Office,11/07/2019,06 ACCOMMODATION,CHIEF FINANCIAL OFFICER,CORONA ENERGY LTD,430348,13016.59,577704800
BEIS,Met Office,11/07/2019,06 ACCOMMODATION,CHIEF FINANCIAL OFFICER,COUNTRYWIDE GROUNDS MAINTENANCE LTD,430228,3,611731279
BEIS,Met Office,11/07/2019,06 ACCOMMODATION,CHIEF FINANCIAL OFFICER,COUNTRYWIDE GROUNDS MAINTENANCE LTD,430228,60.71,611731279
BEIS,Met Office,11/07/2019,06 ACCOMMODATION,CHIEF FINANCIAL OFFICER,COUNTRYWIDE GROUNDS MAINTENANCE LTD,430228,155.97,611731279
BEIS,Met Office,11/07/2019,06 ACCOMMODATION,CHIEF FINANCIAL OFFICER,COUNTRYWIDE GROUNDS MAINTENANCE LTD,430228,379,611731279
BEIS,Met Office,11/07/2019,06 ACCOMMODATION,CHIEF FINANCIAL OFFICER,COUNTRYWIDE GROUNDS MAINTENANCE LTD,430228,135,611731279
BEIS,Met Office,11/07/2019,06 ACCOMMODATION,CHIEF FINANCIAL OFFICER,COUNTRYWIDE GROUNDS MAINTENANCE LTD,430228,137.58,611731279
BEIS,Met Office,11/07/2019,06 ACCOMMODATION,CHIEF FINANCIAL OFFICER,COUNTRYWIDE GROUNDS MAINTENANCE LTD,430228,66.95,611731279
BEIS,Met Office,11/07/2019,06 ACCOMMODATION,CHIEF FINANCIAL OFFICER,COUNTRYWIDE GROUNDS MAINTENANCE LTD,430228,94,611731279
BEIS,Met Office,11/07/2019,06 ACCOMMODATION,CHIEF FINANCIAL OFFICER,COUNTRYWIDE GROUNDS MAINTENANCE LTD,430228,200,611731279
BEIS,Met Office,11/07/2019,06 ACCOMMODATION,CHIEF FINANCIAL OFFICER,COUNTRYWIDE GROUNDS MAINTENANCE LTD,430228,310,611731279
BEIS,Met Office,11/07/2019,06 ACCOMMODATION,CHIEF FINANCIAL OFFICER,COUNTRYWIDE GROUNDS MAINTENANCE LTD,430228,240,611731279
BEIS,Met Office,11/07/2019,06 ACCOMMODATION,CHIEF FINANCIAL OFFICER,COUNTRYWIDE GROUNDS MAINTENANCE LTD,430228,158.91,611731279
BEIS,Met Office,11/07/2019,06 ACCOMMODATION,CHIEF FINANCIAL OFFICER,COUNTRYWIDE GROUNDS MAINTENANCE LTD,430228,157.57,611731279
BEIS,Met Office,11/07/2019,06 ACCOMMODATION,CHIEF FINANCIAL OFFICER,COUNTRYWIDE GROUNDS MAINTENANCE LTD,430228,196,611731279
BEIS,Met Office,11/07/2019,06 ACCOMMODATION,CHIEF FINANCIAL OFFICER,COUNTRYWIDE GROUNDS MAINTENANCE LTD,430228,95.22,611731279
BEIS,Met Office,11/07/2019,06 ACCOMMODATION,CHIEF FINANCIAL OFFICER,COUNTRYWIDE GROUNDS MAINTENANCE LTD,430228,196,611731279
BEIS,Met Office,11/07/2019,06 ACCOMMODATION,CHIEF FINANCIAL OFFICER,COUNTRYWIDE GROUNDS MAINTENANCE LTD,430228,140,611731279
BEIS,Met Office,11/07/2019,06 ACCOMMODATION,CHIEF FINANCIAL OFFICER,COUNTRYWIDE GROUNDS MAINTENANCE LTD,430228,128.22,611731279
BEIS,Met Office,11/07/2019,06 ACCOMMODATION,CHIEF FINANCIAL OFFICER,COUNTRYWIDE GROUNDS MAINTENANCE LTD,430228,80,611731279
BEIS,Met Office,11/07/2019,06 ACCOMMODATION,CHIEF FINANCIAL OFFICER,COUNTRYWIDE GROUNDS MAINTENANCE LTD,430228,342.97,611731279
BEIS,Met Office,03/07/2019,06 ACCOMMODATION,CHIEF FINANCIAL OFFICER,REDACTED PERSONAL DATA,429900,152,655585009
BEIS,Met Office,03/07/2019,06 ACCOMMODATION,CHIEF FINANCIAL OFFICER,REDACTED PERSONAL DATA,429900,95,655585009
BEIS,Met Office,03/07/2019,06 ACCOMMODATION,CHIEF FINANCIAL OFFICER,REDACTED PERSONAL DATA,429900,85,655585009
BEIS,Met Office,03/07/2019,06 ACCOMMODATION,CHIEF FINANCIAL OFFICER,REDACTED PERSONAL DATA,429900,70,655585009
BEIS,Met Office,03/07/2019,06 ACCOMMODATION,CHIEF FINANCIAL OFFICER,REDACTED PERSONAL DATA,429900,158,655585009
BEIS,Met Office,03/07/2019,06 ACCOMMODATION,CHIEF FINANCIAL OFFICER,REDACTED PERSONAL DATA,429900,120,655585009
BEIS,Met Office,03/07/2019,06 ACCOMMODATION,CHIEF FINANCIAL OFFICER,REDACTED PERSONAL DATA,429900,78,655585009
BEIS,Met Office,03/07/2019,06 ACCOMMODATION,CHIEF FINANCIAL OFFICER,REDACTED PERSONAL DATA,429900,130,655585009
BEIS,Met Office,03/07/2019,06 ACCOMMODATION,CHIEF FINANCIAL OFFICER,REDACTED PERSONAL DATA,429900,80,655585009
BEIS,Met Office,08/07/2019,06 ACCOMMODATION,CHIEF FINANCIAL OFFICER,REDACTED PERSONAL DATA,430053,730,426523462
BEIS,Met Office,18/07/2019,06 ACCOMMODATION,CHIEF FINANCIAL OFFICER,REDACTED PERSONAL DATA,430690,450,426523462
BEIS,Met Office,18/07/2019,06 ACCOMMODATION,CHIEF FINANCIAL OFFICER,REDACTED PERSONAL DATA,430714,730,426523462
BEIS,Met Office,29/07/2019,06 ACCOMMODATION,CHIEF FINANCIAL OFFICER,D&G OFFICE SERVICES LTD,430970,2094,272997547
BEIS,Met Office,02/07/2019,06 ACCOMMODATION,CHIEF FINANCIAL OFFICER,DALCOUR MACLAREN LTD,429722,1500,823 6484 20
BEIS,Met Office,02/07/2019,06 ACCOMMODATION,CHIEF FINANCIAL OFFICER,DALCOUR MACLAREN LTD,429723,1500,823 6484 20
BEIS,Met Office,17/07/2019,06 ACCOMMODATION,CHIEF FINANCIAL OFFICER,EDF ENERGY CUSTOMERS PLC,430504,3277.17,523041202
BEIS,Met Office,17/07/2019,06 ACCOMMODATION,CHIEF FINANCIAL OFFICER,EDF ENERGY CUSTOMERS PLC,430585,353592.75,523041202
BEIS,Met Office,17/07/2019,06 ACCOMMODATION,CHIEF FINANCIAL OFFICER,EDF ENERGY CUSTOMERS PLC,430586,113151.7,523041202
BEIS,Met Office,17/07/2019,06 ACCOMMODATION,CHIEF FINANCIAL OFFICER,EDF ENERGY CUSTOMERS PLC,430587,129052.85,523041202
BEIS,Met Office,15/07/2019,06 ACCOMMODATION,CHIEF FINANCIAL OFFICER,ENVIRONMENT AGENCY RECEIPTS,430400,75,662490134
BEIS,Met Office,04/07/2019,06 ACCOMMODATION,CHIEF FINANCIAL OFFICER,FOX GROUNDS MAINTENANCE & LANDSCAPING LTD,429955,296.7,129495383
BEIS,Met Office,24/07/2019,06 ACCOMMODATION,CHIEF FINANCIAL OFFICER,FUTURE CLEANING SERVICES (SW) LTD.,430832,820.48,756916489
BEIS,Met Office,25/07/2019,06 ACCOMMODATION,CHIEF FINANCIAL OFFICER,FUTURE CLEANING SERVICES (SW) LTD.,430914,365.28,756916489
BEIS,Met Office,03/07/2019,06 ACCOMMODATION,CHIEF FINANCIAL OFFICER,GBC LTD,429802,162.24,859903672
BEIS,Met Office,03/07/2019,06 ACCOMMODATION,CHIEF FINANCIAL OFFICER,GBC LTD,429802,184.8,859903672
BEIS,Met Office,29/07/2019,06 ACCOMMODATION,CHIEF FINANCIAL OFFICER,GREENSTAR CLEANERS LTD,431023,110,492376222
BEIS,Met Office,05/07/2019,06 ACCOMMODATION,CHIEF FINANCIAL OFFICER,REDACTED PERSONAL DATA,430069,3754,1874305
BEIS,Met Office,01/07/2019,06 ACCOMMODATION,CHIEF FINANCIAL OFFICER,Hartlepool Borough Council,429680,100,259087918
BEIS,Met Office,01/07/2019,06 ACCOMMODATION,CHIEF FINANCIAL OFFICER,Hartlepool Borough Council,429680,70,259087918
BEIS,Met Office,16/07/2019,06 ACCOMMODATION,CHIEF FINANCIAL OFFICER,HIGHLANDS & ISLANDS AIRPORTS LTD.,430300,80.46,945667772
BEIS,Met Office,11/07/2019,06 ACCOMMODATION,CHIEF FINANCIAL OFFICER,HSB ENGINEERING INSURANCE SERVICES LTD,430342,4249.69,652642243
BEIS,Met Office,24/07/2019,06 ACCOMMODATION,CHIEF FINANCIAL OFFICER,HUNTSHAM ESTATE - CROSS No.1 SETTLEMENT,430831,5065.16,-
BEIS,Met Office,02/07/2019,06 ACCOMMODATION,CHIEF FINANCIAL OFFICER,I J CANNINGS & SON LTD,429199,1800,192803203
BEIS,Met Office,01/07/2019,06 ACCOMMODATION,CHIEF FINANCIAL OFFICER,I J CANNINGS & SON LTD,429674,1339.52,192803203
BEIS,Met Office,11/07/2019,06 ACCOMMODATION,CHIEF FINANCIAL OFFICER,I J CANNINGS & SON LTD,430316,286,192803203
BEIS,Met Office,26/07/2019,06 ACCOMMODATION,CHIEF FINANCIAL OFFICER,I J CANNINGS & SON LTD,430317,1067,192803203
BEIS,Met Office,26/07/2019,06 ACCOMMODATION,CHIEF FINANCIAL OFFICER,I J CANNINGS & SON LTD,430317,1067,192803203
BEIS,Met Office,26/07/2019,06 ACCOMMODATION,CHIEF FINANCIAL OFFICER,I J CANNINGS & SON LTD,430317,1067,192803203
BEIS,Met Office,11/07/2019,06 ACCOMMODATION,CHIEF FINANCIAL OFFICER,I J CANNINGS & SON LTD,430318,2624.25,192803203
BEIS,Met Office,11/07/2019,06 ACCOMMODATION,CHIEF FINANCIAL OFFICER,I J CANNINGS & SON LTD,430319,1111.24,192803203
BEIS,Met Office,26/07/2019,06 ACCOMMODATION,CHIEF FINANCIAL OFFICER,I J CANNINGS & SON LTD,430320,715,192803203
BEIS,Met Office,26/07/2019,06 ACCOMMODATION,CHIEF FINANCIAL OFFICER,I J CANNINGS & SON LTD,430320,1390,192803203
BEIS,Met Office,26/07/2019,06 ACCOMMODATION,CHIEF FINANCIAL OFFICER,I J CANNINGS & SON LTD,430320,1390,192803203
BEIS,Met Office,26/07/2019,06 ACCOMMODATION,CHIEF FINANCIAL OFFICER,I J CANNINGS & SON LTD,430320,660,192803203
BEIS,Met Office,26/07/2019,06 ACCOMMODATION,CHIEF FINANCIAL OFFICER,I J CANNINGS & SON LTD,430320,1390,192803203
BEIS,Met Office,26/07/2019,06 ACCOMMODATION,CHIEF FINANCIAL OFFICER,I J CANNINGS & SON LTD,430320,1390,192803203
BEIS,Met Office,26/07/2019,06 ACCOMMODATION,CHIEF FINANCIAL OFFICER,I J CANNINGS & SON LTD,430320,1390,192803203
BEIS,Met Office,26/07/2019,06 ACCOMMODATION,CHIEF FINANCIAL OFFICER,I J CANNINGS & SON LTD,430320,1850,192803203
BEIS,Met Office,11/07/2019,06 ACCOMMODATION,CHIEF FINANCIAL OFFICER,I J CANNINGS & SON LTD,430321,1270.03,192803203
BEIS,Met Office,11/07/2019,06 ACCOMMODATION,CHIEF FINANCIAL OFFICER,I J CANNINGS & SON LTD,430322,2839.1,192803203
BEIS,Met Office,11/07/2019,06 ACCOMMODATION,CHIEF FINANCIAL OFFICER,I J CANNINGS & SON LTD,430323,1366.12,192803203
BEIS,Met Office,12/07/2019,06 ACCOMMODATION,CHIEF FINANCIAL OFFICER,I J CANNINGS & SON LTD,430393,1985.02,192803203
BEIS,Met Office,15/07/2019,06 ACCOMMODATION,CHIEF FINANCIAL OFFICER,I J CANNINGS & SON LTD,430497,2700,192803203
BEIS,Met Office,16/07/2019,06 ACCOMMODATION,CHIEF FINANCIAL OFFICER,I J CANNINGS & SON LTD,430582,1718.85,192803203
BEIS,Met Office,18/07/2019,06 ACCOMMODATION,CHIEF FINANCIAL OFFICER,I J CANNINGS & SON LTD,430646,1400.8,192803203
BEIS,Met Office,18/07/2019,06 ACCOMMODATION,CHIEF FINANCIAL OFFICER,I J CANNINGS & SON LTD,430677,299.95,192803203
BEIS,Met Office,18/07/2019,06 ACCOMMODATION,CHIEF FINANCIAL OFFICER,I J CANNINGS & SON LTD,430679,2950,192803203
BEIS,Met Office,22/07/2019,06 ACCOMMODATION,CHIEF FINANCIAL OFFICER,I J CANNINGS & SON LTD,430817,1107.18,192803203
BEIS,Met Office,10/07/2019,06 ACCOMMODATION,CHIEF FINANCIAL OFFICER,JAMES & MARCIA BENJAMIN,429943,520,-
BEIS,Met Office,29/07/2019,06 ACCOMMODATION,BUSINESS GROUP,LHR BUSINESS SUPPORT CENTRE LTD,430676,150,927365404
BEIS,Met Office,24/07/2019,06 ACCOMMODATION,BUSINESS GROUP,LHR BUSINESS SUPPORT CENTRE LTD,430820,20.05,927365404
BEIS,Met Office,15/07/2019,06 ACCOMMODATION,CHIEF FINANCIAL OFFICER,Mid Sussex District Council,430505,4962.5,-
BEIS,Met Office,05/07/2019,06 ACCOMMODATION,CHIEF FINANCIAL OFFICER,MITIE SECURITY LTD,429994,803,416706654
BEIS,Met Office,08/07/2019,06 ACCOMMODATION,CHIEF FINANCIAL OFFICER,MORAY COUNCIL,430150,170.82,663755506
BEIS,Met Office,11/07/2019,06 ACCOMMODATION,CHIEF FINANCIAL OFFICER,MORAY COUNCIL,430301,147.34,663755506
BEIS,Met Office,11/07/2019,06 ACCOMMODATION,CHIEF FINANCIAL OFFICER,MORAY COUNCIL,430313,535.08,663755506
BEIS,Met Office,01/07/2019,06 ACCOMMODATION,CHIEF FINANCIAL OFFICER,MOUNT CHARLES GROUP LTD,429686,485.72,517116274
BEIS,Met Office,24/07/2019,06 ACCOMMODATION,CHIEF FINANCIAL OFFICER,MOUNT CHARLES GROUP LTD,430838,475.29,517116274
BEIS,Met Office,29/07/2019,06 ACCOMMODATION,CHIEF FINANCIAL OFFICER,MOUNT CHARLES GROUP LTD,431057,485.72,517116274
BEIS,Met Office,31/07/2019,06 ACCOMMODATION,CHIEF FINANCIAL OFFICER,REDACTED PERSONAL DATA,429915,10117.35,617358920
BEIS,Met Office,04/07/2019,06 ACCOMMODATION,CHIEF FINANCIAL OFFICER,NESS ENGINEERING LTD,429997,1463.23,430188472
BEIS,Met Office,18/07/2019,06 ACCOMMODATION,CHIEF FINANCIAL OFFICER,NESS ENGINEERING LTD,430541,2306.41,430188472
BEIS,Met Office,22/07/2019,06 ACCOMMODATION,CHIEF FINANCIAL OFFICER,NESS ENGINEERING LTD,430678,44.5,430188472
BEIS,Met Office,26/07/2019,06 ACCOMMODATION,CHIEF FINANCIAL OFFICER,NESS ENGINEERING LTD,430978,1789.72,430188472
BEIS,Met Office,01/07/2019,06 ACCOMMODATION,CHIEF FINANCIAL OFFICER,NORSCOTT VENDING SERVICES LTD,429672,85,751402071
BEIS,Met Office,01/07/2019,06 ACCOMMODATION,CHIEF FINANCIAL OFFICER,NORSCOTT VENDING SERVICES LTD,429684,85,751402071
BEIS,Met Office,12/07/2019,06 ACCOMMODATION,CHIEF FINANCIAL OFFICER,Northern Lighthouse Board,430372,474.46,268628908
BEIS,Met Office,12/07/2019,06 ACCOMMODATION,CHIEF FINANCIAL OFFICER,Northern Lighthouse Board,430383,2700,268628908
BEIS,Met Office,12/07/2019,06 ACCOMMODATION,CHIEF FINANCIAL OFFICER,OUR LADY OF BETHLEHEM ABBEY,430369,500,-
BEIS,Met Office,11/07/2019,06 ACCOMMODATION,CHIEF FINANCIAL OFFICER,REDACTED PERSONAL DATA,430304,95,899936427
BEIS,Met Office,15/07/2019,06 ACCOMMODATION,CHIEF FINANCIAL OFFICER,PK ENGINEERING,430500,837.64,473303267
BEIS,Met Office,15/07/2019,06 ACCOMMODATION,CHIEF FINANCIAL OFFICER,PK ENGINEERING,430501,-290,473303267
BEIS,Met Office,17/07/2019,06 ACCOMMODATION,CHIEF FINANCIAL OFFICER,POSTURITE (UK) LTD,430617,1904.64,583565114
BEIS,Met Office,25/07/2019,06 ACCOMMODATION,CHIEF FINANCIAL OFFICER,POSTURITE (UK) LTD,430667,-55.49,583565114
BEIS,Met Office,25/07/2019,06 ACCOMMODATION,CHIEF FINANCIAL OFFICER,POSTURITE (UK) LTD,430671,21.67,583565114
BEIS,Met Office,05/07/2019,06 ACCOMMODATION,CHIEF FINANCIAL OFFICER,QUANTUM MANAGEMENT (UK) LTD,430039,390,781819690
BEIS,Met Office,11/07/2019,06 ACCOMMODATION,CHIEF FINANCIAL OFFICER,RIVER RIDGE,430303,108.98,176286083
BEIS,Met Office,02/07/2019,06 ACCOMMODATION,CHIEF FINANCIAL OFFICER,ROLLO POWER SOLUTIONS,429603,242,100516042
BEIS,Met Office,02/07/2019,06 ACCOMMODATION,CHIEF FINANCIAL OFFICER,ROLLO POWER SOLUTIONS,429604,242,100516042
BEIS,Met Office,03/07/2019,06 ACCOMMODATION,CHIEF FINANCIAL OFFICER,ROLLO POWER SOLUTIONS,429671,554,100516042
BEIS,Met Office,02/07/2019,06 ACCOMMODATION,CHIEF FINANCIAL OFFICER,SCIENCE & TECHNOLOGY FACILITIES COUNCIL,429543,-25939.43,618367325
BEIS,Met Office,29/07/2019,06 ACCOMMODATION,CHIEF FINANCIAL OFFICER,Scottish Government,431029,450,888842551
BEIS,Met Office,31/07/2019,06 ACCOMMODATION,CHIEF FINANCIAL OFFICER,SENATOR INTERNATIONAL LTD,428846,645.05,291146560
BEIS,Met Office,31/07/2019,06 ACCOMMODATION,CHIEF FINANCIAL OFFICER,SENATOR INTERNATIONAL LTD,428846,92.86,291146560
BEIS,Met Office,31/07/2019,06 ACCOMMODATION,CHIEF FINANCIAL OFFICER,SENATOR INTERNATIONAL LTD,428846,300,291146560
BEIS,Met Office,11/07/2019,06 ACCOMMODATION,CHIEF FINANCIAL OFFICER,SHETLAND CLEANING SERVICES,430312,696.67,430028404
BEIS,Met Office,01/07/2019,06 ACCOMMODATION,CHIEF FINANCIAL OFFICER,SOUTH WEST WATER LTD,429681,606.52,236873674
BEIS,Met Office,17/07/2019,06 ACCOMMODATION,CHIEF FINANCIAL OFFICER,SOUTH WEST WATER LTD,430584,450.02,236873674
BEIS,Met Office,31/07/2019,06 ACCOMMODATION,CHIEF FINANCIAL OFFICER,SOUTH WEST WATER LTD,431092,151.81,236873674
BEIS,Met Office,01/07/2019,06 ACCOMMODATION,CHIEF FINANCIAL OFFICER,ST MODWEN VENTURES LTD,429615,82.58,975081008
BEIS,Met Office,16/07/2019,06 ACCOMMODATION,CHIEF FINANCIAL OFFICER,STONE HILL PARK LTD,430580,15.93,196461180
BEIS,Met Office,03/07/2019,06 ACCOMMODATION,CHIEF FINANCIAL OFFICER,REDACTED PERSONAL DATA,429895,200,N/A
BEIS,Met Office,01/07/2019,06 ACCOMMODATION,CHIEF FINANCIAL OFFICER,TEAM MAINTENANCE SERVICES LTD,429598,675,744909406
BEIS,Met Office,03/07/2019,06 ACCOMMODATION,CHIEF FINANCIAL OFFICER,TENNIE FACILITIES PROPERTY MANAGEMENT LTD,429854,165.72,982055803
BEIS,Met Office,29/07/2019,06 ACCOMMODATION,CHIEF FINANCIAL OFFICER,THAMES WATER,430719,1750,-
BEIS,Met Office,02/07/2019,06 ACCOMMODATION,CHIEF FINANCIAL OFFICER,THORNLEY WILDLIFE SERVICES,429776,150,N/A
BEIS,Met Office,08/07/2019,06 ACCOMMODATION,CHIEF FINANCIAL OFFICER,THORNLEY WILDLIFE SERVICES,430187,150,N/A
BEIS,Met Office,08/07/2019,06 ACCOMMODATION,CHIEF FINANCIAL OFFICER,Trinity House,430070,425,243120414
BEIS,Met Office,08/07/2019,06 ACCOMMODATION,CHIEF FINANCIAL OFFICER,Trinity House,430070,325,243120414
BEIS,Met Office,19/07/2019,06 ACCOMMODATION,CHIEF FINANCIAL OFFICER,TULLY FARM HOLDINGS T/A CONTRACT SERVICES,430733,255.5,872632707
BEIS,Met Office,04/07/2019,06 ACCOMMODATION,CHIEF FINANCIAL OFFICER,UNDER ONE ROOF (EAST ANGLIA) LIMITED,429945,220,157127804
BEIS,Met Office,03/07/2019,06 ACCOMMODATION,CHIEF FINANCIAL OFFICER,University Of Birmingham,429805,491.04,729856187
BEIS,Met Office,03/07/2019,07 EQUIPMENT,OPERATIONS,Campbell Scientific Ltd,428509,986.4,428453933
BEIS,Met Office,03/07/2019,07 EQUIPMENT,OPERATIONS,Campbell Scientific Ltd,428509,1461.6,428453933
BEIS,Met Office,03/07/2019,07 EQUIPMENT,OPERATIONS,Campbell Scientific Ltd,429340,616.5,428453933
BEIS,Met Office,03/07/2019,07 EQUIPMENT,OPERATIONS,Campbell Scientific Ltd,429340,913.5,428453933
BEIS,Met Office,02/07/2019,07 EQUIPMENT,GOVERNMENT SERVICES,CRANFIELD AEROSPACE SOLUTIONS LTD,429411,15590,608596509
BEIS,Met Office,15/07/2019,07 EQUIPMENT,OPERATIONS,DOT SOFTWARE LTD,429618,480,701022805
BEIS,Met Office,15/07/2019,07 EQUIPMENT,OPERATIONS,DOT SOFTWARE LTD,429618,1920,701022805
BEIS,Met Office,15/07/2019,07 EQUIPMENT,OPERATIONS,DOT SOFTWARE LTD,429618,960,701022805
BEIS,Met Office,15/07/2019,07 EQUIPMENT,OPERATIONS,DOT SOFTWARE LTD,429618,480,701022805
BEIS,Met Office,15/07/2019,07 EQUIPMENT,OPERATIONS,DOT SOFTWARE LTD,429618,960,701022805
BEIS,Met Office,15/07/2019,07 EQUIPMENT,OPERATIONS,DOT SOFTWARE LTD,429618,480,701022805
BEIS,Met Office,31/07/2019,07 EQUIPMENT,OPERATIONS,GAMMA TELECOM LTD,430339,200,823820344
BEIS,Met Office,31/07/2019,07 EQUIPMENT,OPERATIONS,GAMMA TELECOM LTD,430339,148.12,823820344
BEIS,Met Office,31/07/2019,07 EQUIPMENT,OPERATIONS,GAMMA TELECOM LTD,430339,1073.3,823820344
BEIS,Met Office,31/07/2019,07 EQUIPMENT,OPERATIONS,GAMMA TELECOM LTD,430339,389.25,823820344
BEIS,Met Office,08/07/2019,07 EQUIPMENT,CHIEF FINANCIAL OFFICER,I J CANNINGS & SON LTD,430145,207.28,192803203
BEIS,Met Office,25/07/2019,07 EQUIPMENT,CHIEF FINANCIAL OFFICER,NATWEST COMMERCIAL CARDS DIVISION,430884,7660.44,N/A
BEIS,Met Office,30/07/2019,07 EQUIPMENT,OPERATIONS,SB PRECISION ENGINEERING LTD,428227,280.8,137923104
BEIS,Met Office,01/07/2019,07 EQUIPMENT,TECHNOLOGY,SSE CONTRACTING LTD,429616,185.78,570118464
BEIS,Met Office,29/07/2019,07 EQUIPMENT,TECHNOLOGY,SSE CONTRACTING LTD,430988,217.58,570118464
BEIS,Met Office,25/07/2019,07 EQUIPMENT,OPERATIONS,VAISALA OYJ,20500,-24043.22,FI01244162
BEIS,Met Office,05/07/2019,07 EQUIPMENT,BUSINESS GROUP,XL SYSTEMS LTD,430112,1895,528507046
BEIS,Met Office,24/07/2019,08 SOFTWARE LICENCES,CHIEF FINANCIAL OFFICER,CEMAR,430879,450,915042161
BEIS,Met Office,29/07/2019,08 SOFTWARE LICENCES,TECHNOLOGY,COMPUTACENTER (UK) LTD,430910,4101.3,490334648
BEIS,Met Office,29/07/2019,08 SOFTWARE LICENCES,TECHNOLOGY,COMPUTACENTER (UK) LTD,430911,1069.94,490334648
BEIS,Met Office,04/07/2019,08 SOFTWARE LICENCES,TECHNOLOGY,GOOGLE IRELAND LTD,429908,31.16,6388047V
BEIS,Met Office,11/07/2019,08 SOFTWARE LICENCES,TECHNOLOGY,Harper Collins Publishers Ltd,430298,830,259639706
BEIS,Met Office,17/07/2019,08 SOFTWARE LICENCES,GOVERNMENT SERVICES,"IBL SOFTWARE ENGINEERING, SPOL S.R.O.",20427,20814.19,SK2020241883
BEIS,Met Office,17/07/2019,08 SOFTWARE LICENCES,GOVERNMENT SERVICES,"IBL SOFTWARE ENGINEERING, SPOL S.R.O.",20427,166440.09,SK2020241883
BEIS,Met Office,03/07/2019,08 SOFTWARE LICENCES,GOVERNMENT SERVICES,"IBL SOFTWARE ENGINEERING, SPOL S.R.O.",20512,218236.79,SK2020241883
BEIS,Met Office,31/07/2019,08 SOFTWARE LICENCES,GOVERNMENT SERVICES,"IBL SOFTWARE ENGINEERING, SPOL S.R.O.",20546,21881.17,SK2020241883
BEIS,Met Office,03/07/2019,08 SOFTWARE LICENCES,TECHNOLOGY,"IBL SOFTWARE ENGINEERING, SPOL S.R.O.",428501,780,SK2020241883
BEIS,Met Office,03/07/2019,08 SOFTWARE LICENCES,TECHNOLOGY,"IBL SOFTWARE ENGINEERING, SPOL S.R.O.",428501,3210,SK2020241883
BEIS,Met Office,03/07/2019,08 SOFTWARE LICENCES,TECHNOLOGY,"IBL SOFTWARE ENGINEERING, SPOL S.R.O.",428501,22382.42,SK2020241883
BEIS,Met Office,03/07/2019,08 SOFTWARE LICENCES,TECHNOLOGY,"IBL SOFTWARE ENGINEERING, SPOL S.R.O.",428501,1950,SK2020241883
BEIS,Met Office,03/07/2019,08 SOFTWARE LICENCES,TECHNOLOGY,"IBL SOFTWARE ENGINEERING, SPOL S.R.O.",428501,1540,SK2020241883
BEIS,Met Office,03/07/2019,08 SOFTWARE LICENCES,STRATEGIC INVESTMENT,IBM UNITED KINGDOM LTD,428137,-8477.43,107328000
BEIS,Met Office,03/07/2019,08 SOFTWARE LICENCES,STRATEGIC INVESTMENT,IBM UNITED KINGDOM LTD,428138,8477.43,107328000
BEIS,Met Office,08/07/2019,08 SOFTWARE LICENCES,TECHNOLOGY,IBM UNITED KINGDOM LTD,428682,725.26,107328000
BEIS,Met Office,03/07/2019,08 SOFTWARE LICENCES,TECHNOLOGY,IBM UNITED KINGDOM LTD,429822,604.38,107328000
BEIS,Met Office,08/07/2019,08 SOFTWARE LICENCES,TECHNOLOGY,IBM UNITED KINGDOM LTD,429935,10503.7,107328000
BEIS,Met Office,15/07/2019,08 SOFTWARE LICENCES,TECHNOLOGY,IBM UNITED KINGDOM LTD,430451,8298,107328000
BEIS,Met Office,15/07/2019,08 SOFTWARE LICENCES,TECHNOLOGY,IBM UNITED KINGDOM LTD,430452,8622,107328000
BEIS,Met Office,15/07/2019,08 SOFTWARE LICENCES,TECHNOLOGY,IBM UNITED KINGDOM LTD,430525,8622,107328000
BEIS,Met Office,15/07/2019,08 SOFTWARE LICENCES,TECHNOLOGY,IBM UNITED KINGDOM LTD,430526,8622,107328000
BEIS,Met Office,29/07/2019,08 SOFTWARE LICENCES,TECHNOLOGY,IBM UNITED KINGDOM LTD,431019,47989.06,107328000
BEIS,Met Office,10/07/2019,08 SOFTWARE LICENCES,GOVERNMENT SERVICES,"INTELLOVATIONS, LLC",9494,117.66,-
BEIS,Met Office,10/07/2019,08 SOFTWARE LICENCES,GOVERNMENT SERVICES,"INTELLOVATIONS, LLC",9494,1451.16,-
BEIS,Met Office,03/07/2019,08 SOFTWARE LICENCES,TECHNOLOGY,NEXUS OPEN SYSTEMS LTD,429843,2189.38,723221673
BEIS,Met Office,05/07/2019,08 SOFTWARE LICENCES,TECHNOLOGY,PRESENTATION CARTOGRAPHY LTD,429934,7775,-
BEIS,Met Office,05/07/2019,08 SOFTWARE LICENCES,TECHNOLOGY,PRESENTATION CARTOGRAPHY LTD,429934,1875,-
BEIS,Met Office,11/07/2019,08 SOFTWARE LICENCES,TECHNOLOGY,SOFTWARE BOX LIMITED,430280,484,734245248
BEIS,Met Office,30/07/2019,08 SOFTWARE LICENCES,TECHNOLOGY,SOFTWARE BOX LIMITED,430980,14157.84,734245248
BEIS,Met Office,30/07/2019,08 SOFTWARE LICENCES,TECHNOLOGY,SOFTWARE BOX LIMITED,430980,54860.88,734245248
BEIS,Met Office,31/07/2019,08 SOFTWARE LICENCES,TECHNOLOGY,SOFTWARE BOX LIMITED,431065,90773.67,734245248
BEIS,Met Office,12/07/2019,08 SOFTWARE LICENCES,OTHER,TIMEWATCH PLC,430315,2062.5,461555250
BEIS,Met Office,30/07/2019,08 SOFTWARE LICENCES,TECHNOLOGY,ZOHO CORPORATION B.V.,429323,13538,NL855264263B01
BEIS,Met Office,02/07/2019,10 EQUIPMENT MAINTENANCE,TECHNOLOGY,AXIAL SYSTEMS LTD,429777,7916,927444704
BEIS,Met Office,01/07/2019,10 EQUIPMENT MAINTENANCE,TECHNOLOGY,COMPUTACENTER (UK) LTD,429630,185.49,490334648
BEIS,Met Office,01/07/2019,10 EQUIPMENT MAINTENANCE,TECHNOLOGY,COMPUTACENTER (UK) LTD,429667,38947.03,490334648
BEIS,Met Office,02/07/2019,10 EQUIPMENT MAINTENANCE,TECHNOLOGY,COMPUTACENTER (UK) LTD,429769,13398.48,490334648
BEIS,Met Office,08/07/2019,10 EQUIPMENT MAINTENANCE,TECHNOLOGY,COMPUTACENTER (UK) LTD,429771,32202.7,490334648
BEIS,Met Office,22/07/2019,10 EQUIPMENT MAINTENANCE,TECHNOLOGY,COMPUTACENTER (UK) LTD,430723,382,490334648
BEIS,Met Office,29/07/2019,10 EQUIPMENT MAINTENANCE,TECHNOLOGY,COMPUTACENTER (UK) LTD,430979,2865.01,490334648
BEIS,Met Office,11/07/2019,10 EQUIPMENT MAINTENANCE,TECHNOLOGY,CRAY UK LTD,430309,742934.23,724594419
BEIS,Met Office,16/07/2019,10 EQUIPMENT MAINTENANCE,TECHNOLOGY,GCHQ PUBLIC ACCOUNT - CESG,430577,19006.84,888813658
BEIS,Met Office,09/07/2019,10 EQUIPMENT MAINTENANCE,OPERATIONS,Goldisc Limited,430086,10410,861294416
BEIS,Met Office,02/07/2019,10 EQUIPMENT MAINTENANCE,TECHNOLOGY,IP PERFORMANCE LTD,429823,6888,650541851
BEIS,Met Office,05/07/2019,10 EQUIPMENT MAINTENANCE,TECHNOLOGY,ORACLE CORPORATION UK LTD,429856,20245.55,391313073
BEIS,Met Office,05/07/2019,10 EQUIPMENT MAINTENANCE,TECHNOLOGY,ORACLE CORPORATION UK LTD,429857,20245.55,391313073
BEIS,Met Office,25/07/2019,10 EQUIPMENT MAINTENANCE,OPERATIONS,QUASAR MICROWAVE TECHNOLOGY LTD,430972,9254.52,209385203
BEIS,Met Office,11/07/2019,10 EQUIPMENT MAINTENANCE,OPERATIONS,RAISE TELECOMS LTD,430274,8264,166016521
BEIS,Met Office,19/07/2019,10 EQUIPMENT MAINTENANCE,OPERATIONS,RAISE TELECOMS LTD,430275,16034.72,166016521
BEIS,Met Office,09/07/2019,10 EQUIPMENT MAINTENANCE,OPERATIONS,SERVELEC TECHNOLOGIES UK LTD,430071,16716.25,648280518
BEIS,Met Office,11/07/2019,10 EQUIPMENT MAINTENANCE,OPERATIONS,Services Sound & Vision Corporation,430119,26000,-
BEIS,Met Office,26/07/2019,10 EQUIPMENT MAINTENANCE,OPERATIONS,Trinity House,431017,791.79,243120414
BEIS,Met Office,26/07/2019,10 EQUIPMENT MAINTENANCE,OPERATIONS,Trinity House,431017,1151.7,243120414
BEIS,Met Office,03/07/2019,10 EQUIPMENT MAINTENANCE,OPERATIONS,VAISALA OYJ,20498,16028.82,FI01244162
BEIS,Met Office,03/07/2019,10 EQUIPMENT MAINTENANCE,GOVERNMENT SERVICES,VAISALA OYJ,20499,8014.41,FI01244162
BEIS,Met Office,25/07/2019,10 EQUIPMENT MAINTENANCE,OPERATIONS,VAISALA OYJ,20515,24219.19,FI01244162
BEIS,Met Office,11/07/2019,10 EQUIPMENT MAINTENANCE,OPERATIONS,YOUNG CALIBRATION LIMITED,430288,800,673900720
BEIS,Met Office,11/07/2019,10 EQUIPMENT MAINTENANCE,OPERATIONS,YOUNG CALIBRATION LIMITED,430288,10,673900720
BEIS,Met Office,05/07/2019,11 SERVICES,TECHNOLOGY,A I MEDIA,429784,378,994262974
BEIS,Met Office,04/07/2019,11 SERVICES,GOVERNMENT SERVICES,ACADEMY FOR PROJECT MANAGEMENT LTD,429846,6900,NOT REGD
BEIS,Met Office,04/07/2019,11 SERVICES,OPERATIONS,ACADEMY FOR PROJECT MANAGEMENT LTD,429995,1150,NOT REGD
BEIS,Met Office,04/07/2019,11 SERVICES,OPERATIONS,ACADEMY FOR PROJECT MANAGEMENT LTD,429995,300,NOT REGD
BEIS,Met Office,25/07/2019,11 SERVICES,GOVERNMENT SERVICES,ACCELERATION EMARKETING,427515,60.53,848940776
BEIS,Met Office,17/07/2019,11 SERVICES,GOVERNMENT SERVICES,ACCELERATION EMARKETING,430367,7614.51,848940776
BEIS,Met Office,17/07/2019,11 SERVICES,GOVERNMENT SERVICES,ACCELERATION EMARKETING,430368,5051.34,848940776
BEIS,Met Office,16/07/2019,11 SERVICES,CORPORATE,ACCESS INTELLIGENCE MEDIA AND COMMUNICATIONS,430503,19595.01,GB225346716
BEIS,Met Office,25/07/2019,11 SERVICES,CORPORATE,ACT NOW TRAINING LTD,423337,49,830081858
BEIS,Met Office,08/07/2019,11 SERVICES,CHIEF FINANCIAL OFFICER,ADAM PHONES LTD,430059,353.4,538877093
BEIS,Met Office,29/07/2019,11 SERVICES,CHIEF FINANCIAL OFFICER,ADAM PHONES LTD,431054,343.2,538877093
BEIS,Met Office,08/07/2019,11 SERVICES,GOVERNMENT SERVICES,ADOPSTAR,429770,1250,115036848
BEIS,Met Office,05/07/2019,11 SERVICES,TECHNOLOGY,AKAMAI TECHNOLOGIES LTD,429936,4248.48,745091237
BEIS,Met Office,05/07/2019,11 SERVICES,TECHNOLOGY,AKAMAI TECHNOLOGIES LTD,429936,22304.55,745091237
BEIS,Met Office,31/07/2019,11 SERVICES,CORPORATE,ALL THINGS IC LIMITED,431070,1245,161381327
BEIS,Met Office,04/07/2019,11 SERVICES,CHIEF FINANCIAL OFFICER,ALLSTAR BUSINESS SOLUTIONS LTD,429808,3857.3,747880191
BEIS,Met Office,17/07/2019,11 SERVICES,CHIEF FINANCIAL OFFICER,ALLSTAR BUSINESS SOLUTIONS LTD,430616,4060.84,747880191
BEIS,Met Office,09/07/2019,11 SERVICES,OPERATIONS,ALPHABET (GB) LTD,429586,342.6,572417244
BEIS,Met Office,01/07/2019,11 SERVICES,OPERATIONS,ALPHABET (GB) LTD,429587,2327.13,572417244
BEIS,Met Office,09/07/2019,11 SERVICES,OPERATIONS,ALPHABET (GB) LTD,429588,-2108.22,572417244
BEIS,Met Office,01/07/2019,11 SERVICES,OPERATIONS,ALPHABET (GB) LTD,429589,62.02,572417244
BEIS,Met Office,09/07/2019,11 SERVICES,OPERATIONS,ALPHABET (GB) LTD,429892,333.92,572417244
BEIS,Met Office,09/07/2019,11 SERVICES,OPERATIONS,ALPHABET (GB) LTD,429893,343.18,572417244
BEIS,Met Office,09/07/2019,11 SERVICES,OPERATIONS,ALPHABET (GB) LTD,429939,216.98,572417244
BEIS,Met Office,09/07/2019,11 SERVICES,OPERATIONS,ALPHABET (GB) LTD,429940,126.84,572417244
BEIS,Met Office,09/07/2019,11 SERVICES,OPERATIONS,ALPHABET (GB) LTD,429941,749.22,572417244
BEIS,Met Office,09/07/2019,11 SERVICES,OPERATIONS,ALPHABET (GB) LTD,429959,13.81,572417244
BEIS,Met Office,09/07/2019,11 SERVICES,OPERATIONS,ALPHABET (GB) LTD,430077,189.75,572417244
BEIS,Met Office,03/07/2019,11 SERVICES,TECHNOLOGY,AMAZON WEB SERVICES INC.,9469,44121.01,N/A
BEIS,Met Office,31/07/2019,11 SERVICES,TECHNOLOGY,AMAZON WEB SERVICES INC.,9487,11766.18,N/A
BEIS,Met Office,31/07/2019,11 SERVICES,TECHNOLOGY,AMAZON WEB SERVICES INC.,9496,48633.39,N/A
BEIS,Met Office,12/07/2019,11 SERVICES,CHIEF FINANCIAL OFFICER,ANVIL MOBILE LIMITED,430431,156.05,981686175
BEIS,Met Office,22/07/2019,11 SERVICES,OPERATIONS,APPLIED SATELLITE TECHNOLOGY SYSTEMS LTD,430736,10728.14,720108683
BEIS,Met Office,24/07/2019,11 SERVICES,OPERATIONS,APPLIED SATELLITE TECHNOLOGY SYSTEMS LTD,430737,240.58,720108683
BEIS,Met Office,16/07/2019,11 SERVICES,GOVERNMENT SERVICES,Arup,429631,36072,524461265
BEIS,Met Office,17/07/2019,11 SERVICES,OPERATIONS,ASPIRE EUROPE LTD,430673,2500,841124953
BEIS,Met Office,11/07/2019,11 SERVICES,TECHNOLOGY,AUTOMATION LOGIC,430142,3300,985044595
BEIS,Met Office,11/07/2019,11 SERVICES,TECHNOLOGY,AUTOMATION LOGIC,430142,600,985044595
BEIS,Met Office,19/07/2019,11 SERVICES,TECHNOLOGY,AUTOMATION LOGIC,430151,39610,985044595
BEIS,Met Office,19/07/2019,11 SERVICES,TECHNOLOGY,AUTOMATION LOGIC,430557,-2625,985044595
BEIS,Met Office,25/07/2019,11 SERVICES,OPERATIONS,"AXYS TECHNOLOGIES, INC",9477,118.41,-
BEIS,Met Office,25/07/2019,11 SERVICES,OPERATIONS,"AXYS TECHNOLOGIES, INC",9488,117.66,-
BEIS,Met Office,25/07/2019,11 SERVICES,OPERATIONS,"AXYS TECHNOLOGIES, INC",9505,117.62,-
BEIS,Met Office,08/07/2019,11 SERVICES,GOVERNMENT SERVICES,BEIS,430068,509110,888825550
BEIS,Met Office,18/07/2019,11 SERVICES,CORPORATE,BEIS,430687,4547.48,888825550
BEIS,Met Office,24/07/2019,11 SERVICES,OPERATIONS,BJSS LIMITED,426892,9598.05,613295452
BEIS,Met Office,31/07/2019,11 SERVICES,TECHNOLOGY,BLOOMREACH B.V.,429824,113880,NL815260076B01
BEIS,Met Office,02/07/2019,11 SERVICES,OPERATIONS,BOC LTD,428521,19642.61,226556555
BEIS,Met Office,02/07/2019,11 SERVICES,OPERATIONS,BOC LTD,429607,-233.12,226556555
BEIS,Met Office,22/07/2019,11 SERVICES,OPERATIONS,BOC LTD,430796,14054.67,226556555
BEIS,Met Office,17/07/2019,11 SERVICES,SCIENCE,B-OPEN SOLUTIONS SRL,20527,55688.22,-
BEIS,Met Office,31/07/2019,11 SERVICES,CORPORATE,BRYERS LLP,429585,287,609635917
BEIS,Met Office,09/07/2019,11 SERVICES,CHIEF FINANCIAL OFFICER,BT CONFERENCING,430235,316.96,245719348
BEIS,Met Office,26/07/2019,11 SERVICES,CHIEF FINANCIAL OFFICER,BT GLOBAL SERVICES,429362,31533.58,245719348
BEIS,Met Office,22/07/2019,11 SERVICES,CHIEF FINANCIAL OFFICER,BT GLOBAL SERVICES,430730,20170.56,245719348
BEIS,Met Office,25/07/2019,11 SERVICES,CHIEF FINANCIAL OFFICER,BT PLC,429541,4092.31,245719348
BEIS,Met Office,03/07/2019,11 SERVICES,CHIEF FINANCIAL OFFICER,BT PLC,429787,14189.25,245719348
BEIS,Met Office,09/07/2019,11 SERVICES,CHIEF FINANCIAL OFFICER,BT PLC,430036,38117.31,245719348
BEIS,Met Office,22/07/2019,11 SERVICES,CHIEF FINANCIAL OFFICER,BT PLC,430447,21909,245719348
BEIS,Met Office,22/07/2019,11 SERVICES,CHIEF FINANCIAL OFFICER,BT PLC,430815,36903.04,245719348
BEIS,Met Office,31/07/2019,11 SERVICES,CHIEF FINANCIAL OFFICER,BT PLC,431138,2783.73,245719348
BEIS,Met Office,03/07/2019,11 SERVICES,GOVERNMENT SERVICES,CACI LTD,429858,20996.5,380609841
BEIS,Met Office,03/07/2019,11 SERVICES,GOVERNMENT SERVICES,CACI LTD,429858,10184,380609841
BEIS,Met Office,08/07/2019,11 SERVICES,TECHNOLOGY,CACI LTD,430076,15732.6,380609841
BEIS,Met Office,12/07/2019,11 SERVICES,STRATEGIC INVESTMENT,CACI LTD,430449,30372.25,380609841
BEIS,Met Office,03/07/2019,11 SERVICES,STRATEGIC INVESTMENT,Campbell Scientific Ltd,428509,2124,428453933
BEIS,Met Office,03/07/2019,11 SERVICES,STRATEGIC INVESTMENT,Campbell Scientific Ltd,428509,147,428453933
BEIS,Met Office,03/07/2019,11 SERVICES,OPERATIONS,Campbell Scientific Ltd,429339,18,428453933
BEIS,Met Office,03/07/2019,11 SERVICES,STRATEGIC INVESTMENT,Campbell Scientific Ltd,429340,1327.5,428453933
BEIS,Met Office,03/07/2019,11 SERVICES,STRATEGIC INVESTMENT,Campbell Scientific Ltd,429340,106,428453933
BEIS,Met Office,03/07/2019,11 SERVICES,STRATEGIC INVESTMENT,Campbell Scientific Ltd,429920,40,428453933
BEIS,Met Office,24/07/2019,11 SERVICES,STRATEGIC INVESTMENT,Campbell Scientific Ltd,430818,780,428453933
BEIS,Met Office,03/07/2019,11 SERVICES,CHIEF FINANCIAL OFFICER,CAPITAL CONTRACTS (SW) LTD,429891,4562.55,874200733
BEIS,Met Office,05/07/2019,11 SERVICES,CHIEF FINANCIAL OFFICER,CARDIFF EXECUTIVE CENTRE LTD,429921,23.25,864497378
BEIS,Met Office,24/07/2019,11 SERVICES,OPERATIONS,CARTUS LTD,428218,95,768489458
BEIS,Met Office,08/07/2019,11 SERVICES,OPERATIONS,CATALYST IT,429825,50,978169262
BEIS,Met Office,08/07/2019,11 SERVICES,OPERATIONS,CATALYST IT,429825,340,978169262
BEIS,Met Office,08/07/2019,11 SERVICES,OPERATIONS,CATALYST IT,429825,846.67,978169262
BEIS,Met Office,02/07/2019,11 SERVICES,GOVERNMENT SERVICES,CENTRO INTERNACIONAL DE AGRICULTURA TROPICAL,429779,14553,na
BEIS,Met Office,02/07/2019,11 SERVICES,GOVERNMENT SERVICES,CGI IT UK Limited,421606,144681.42,232615194
BEIS,Met Office,02/07/2019,11 SERVICES,GOVERNMENT SERVICES,CGI IT UK Limited,421607,7496.18,232615194
BEIS,Met Office,02/07/2019,11 SERVICES,GOVERNMENT SERVICES,CGI IT UK Limited,421608,10000,232615194
BEIS,Met Office,25/07/2019,11 SERVICES,GOVERNMENT SERVICES,CGI IT UK Limited,429021,183787.15,232615194
BEIS,Met Office,09/07/2019,11 SERVICES,GOVERNMENT SERVICES,CGI IT UK Limited,429126,20914.06,232615194
BEIS,Met Office,16/07/2019,11 SERVICES,GOVERNMENT SERVICES,CGI IT UK Limited,430370,183787.15,232615194
BEIS,Met Office,24/07/2019,11 SERVICES,GOVERNMENT SERVICES,CGI IT UK Limited,430840,5314.16,232615194
BEIS,Met Office,04/07/2019,11 SERVICES,STRATEGIC INVESTMENT,CIPHR,429961,13428.75,242661124
BEIS,Met Office,31/07/2019,11 SERVICES,STRATEGIC INVESTMENT,CIPHR,431164,176.77,242661124
BEIS,Met Office,31/07/2019,11 SERVICES,STRATEGIC INVESTMENT,CIPHR,431165,177.29,242661124
BEIS,Met Office,31/07/2019,11 SERVICES,STRATEGIC INVESTMENT,CIPHR,431166,245.52,242661124
BEIS,Met Office,02/07/2019,11 SERVICES,GOVERNMENT SERVICES,CIVICA UK LTD,429533,10025,601293183
BEIS,Met Office,02/07/2019,11 SERVICES,OPERATIONS,CLOUDREACH EUROPE LIMITED,429627,7239.94,978187168
BEIS,Met Office,17/07/2019,11 SERVICES,TECHNOLOGY,CLOUDREACH EUROPE LIMITED,430432,10877.5,978187168
BEIS,Met Office,15/07/2019,11 SERVICES,OPERATIONS,CLOUDREACH EUROPE LIMITED,430516,7237.43,978187168
BEIS,Met Office,08/07/2019,11 SERVICES,CORPORATE,CMC PARTNERSHIP GLOBAL LTD,430130,5063,303694803
BEIS,Met Office,08/07/2019,11 SERVICES,CORPORATE,CMC PARTNERSHIP GLOBAL LTD,430130,324.47,303694803
BEIS,Met Office,10/07/2019,11 SERVICES,GOVERNMENT SERVICES,CONSULTEC,20550,14748.34,400005915
BEIS,Met Office,03/07/2019,11 SERVICES,CHIEF FINANCIAL OFFICER,CORPS SECURITY,429830,19172.2,863536505
BEIS,Met Office,03/07/2019,11 SERVICES,CHIEF FINANCIAL OFFICER,CORPS SECURITY,429853,257,863536505
BEIS,Met Office,03/07/2019,11 SERVICES,SCIENCE,CRANFIELD AEROSPACE SOLUTIONS LTD,429912,51043,608596509
BEIS,Met Office,25/07/2019,11 SERVICES,OPERATIONS,CSW GROUP LTD,414291,250,643546139
BEIS,Met Office,02/07/2019,11 SERVICES,SCIENCE,DACS LTD,429470,5876.92,402196875
BEIS,Met Office,12/07/2019,11 SERVICES,CHIEF FINANCIAL OFFICER,REDACTED PERSONAL DATA,430333,2000,729159704
BEIS,Met Office,15/07/2019,11 SERVICES,CHIEF FINANCIAL OFFICER,REDACTED PERSONAL DATA,430514,700.3,729159704
BEIS,Met Office,05/07/2019,11 SERVICES,CHIEF FINANCIAL OFFICER,DBS FINANCE RECEIPTS CTS,429342,175.91,888805068
BEIS,Met Office,15/07/2019,11 SERVICES,GOVERNMENT SERVICES,DBS FINANCE RECEIPTS CTS,430450,12919.95,888805068
BEIS,Met Office,25/07/2019,11 SERVICES,GOVERNMENT SERVICES,DBS FINANCE RECEIPTS CTS,430456,-12919.95,888805068
BEIS,Met Office,25/07/2019,11 SERVICES,GOVERNMENT SERVICES,DBS FINANCE RECEIPTS CTS,430743,12919.95,888805068
BEIS,Met Office,25/07/2019,11 SERVICES,GOVERNMENT SERVICES,DBS FINANCE RECEIPTS CTS,430789,14263.28,888805068
BEIS,Met Office,24/07/2019,11 SERVICES,CHIEF FINANCIAL OFFICER,DEPARTMENT OF FINANCE AND PERSONNEL,429118,210,888808059
BEIS,Met Office,22/07/2019,11 SERVICES,CHIEF FINANCIAL OFFICER,DEPARTMENT OF FINANCE AND PERSONNEL,429119,262.5,888808059
BEIS,Met Office,24/07/2019,11 SERVICES,CHIEF FINANCIAL OFFICER,DEPARTMENT OF FINANCE AND PERSONNEL,429786,175,888808059
BEIS,Met Office,22/07/2019,11 SERVICES,CHIEF FINANCIAL OFFICER,DEPARTMENT OF FINANCE AND PERSONNEL,429848,70,888808059
BEIS,Met Office,17/07/2019,11 SERVICES,GOVERNMENT SERVICES,DH CONSULTANCY,20571,9711.26,BE0890636479
BEIS,Met Office,16/07/2019,11 SERVICES,CHIEF FINANCIAL OFFICER,DIGITAL COMMUNICATIONS SYSTEMS LIMITED,430553,793.83,GB 556 1971 19
BEIS,Met Office,05/07/2019,11 SERVICES,OPERATIONS,DRIVE CREATIVE STUDIO LTD,430131,3290,167656860
BEIS,Met Office,25/07/2019,11 SERVICES,CHIEF FINANCIAL OFFICER,EIR,20636,54.7,4736919B
BEIS,Met Office,11/07/2019,11 SERVICES,TECHNOLOGY,ENTCORP UK LTD,430335,610.49,314149679
BEIS,Met Office,17/07/2019,11 SERVICES,SCIENCE,Environment Canada,429744,602.66,-
BEIS,Met Office,24/07/2019,11 SERVICES,CORPORATE,EQUINITI ICS LTD,430893,113,915967778
BEIS,Met Office,17/07/2019,11 SERVICES,GOVERNMENT SERVICES,Eumetsat,20491,5258.04,VE
BEIS,Met Office,10/07/2019,11 SERVICES,OPERATIONS,"EUTELSAT MADERIA, UNIPESSOAL LDA",20524,2315.74,PT511283733
BEIS,Met Office,10/07/2019,11 SERVICES,OPERATIONS,"EUTELSAT, S.A.",20504,3012.1,-
BEIS,Met Office,03/07/2019,11 SERVICES,OPERATIONS,"EUTELSAT, S.A.",20523,15636.03,-
BEIS,Met Office,11/07/2019,11 SERVICES,OPERATIONS,Exeter College,429408,3500,125451632
BEIS,Met Office,19/07/2019,11 SERVICES,CHIEF FINANCIAL OFFICER,EXPONENTIAL-E,430762,1320.24,GB798572653
BEIS,Met Office,29/07/2019,11 SERVICES,GOVERNMENT SERVICES,FCO,428162,4359.91,888813560
BEIS,Met Office,18/07/2019,11 SERVICES,GOVERNMENT SERVICES,FCO,428396,4297.54,888813560
BEIS,Met Office,03/07/2019,11 SERVICES,GOVERNMENT SERVICES,FCO,429666,206.57,888813560
BEIS,Met Office,31/07/2019,11 SERVICES,GOVERNMENT SERVICES,FCO,431072,2969.94,888813560
BEIS,Met Office,03/07/2019,11 SERVICES,OPERATIONS,FEINGERATEBAU K. FISCHER GMBH,20511,30.9,DE141292589
BEIS,Met Office,25/07/2019,11 SERVICES,OPERATIONS,FEINGERATEBAU K. FISCHER GMBH,20533,38.44,DE141292589
BEIS,Met Office,31/07/2019,11 SERVICES,OPERATIONS,FIPOI,431053,2114.75,-
BEIS,Met Office,12/07/2019,11 SERVICES,CORPORATE,FOCUSED VISION LIMITED,430289,7067.4,941325442
BEIS,Met Office,12/07/2019,11 SERVICES,CHIEF FINANCIAL OFFICER,GAMMA BUSINESS COMMUNICATIONS LTD,430336,497.5,823820344
BEIS,Met Office,12/07/2019,11 SERVICES,CHIEF FINANCIAL OFFICER,GAMMA TELECOM LTD,430340,0.75,823820344
BEIS,Met Office,12/07/2019,11 SERVICES,CHIEF FINANCIAL OFFICER,GAMMA TELECOM LTD,430340,23600.98,823820344
BEIS,Met Office,12/07/2019,11 SERVICES,CHIEF FINANCIAL OFFICER,GB GROUP PLC,430282,2000,539716218
BEIS,Met Office,17/07/2019,11 SERVICES,GOVERNMENT SERVICES,GCAP UK LTD,430552,14896.8,991716093
BEIS,Met Office,24/07/2019,11 SERVICES,OPERATIONS,GH ZEAL LTD,430593,17.5,648929087
BEIS,Met Office,24/07/2019,11 SERVICES,OPERATIONS,GH ZEAL LTD,430821,17.5,648929087
BEIS,Met Office,08/07/2019,11 SERVICES,CHIEF FINANCIAL OFFICER,GIBRALTAR NYNEX COMMUNICATIONS LTD,430078,144,NOVAT
BEIS,Met Office,09/07/2019,11 SERVICES,OPERATIONS,Goldisc Limited,430086,90,861294416
BEIS,Met Office,17/07/2019,11 SERVICES,BUSINESS GROUP,GOVNET COMMUNICATIONS,430302,2500,686277974
BEIS,Met Office,08/07/2019,11 SERVICES,OPERATIONS,H & B SENSORS LTD,429896,25,321828666
BEIS,Met Office,03/07/2019,11 SERVICES,SCIENCE,HARRYS RESTAURANTS LTD,429838,220.58,940334251
BEIS,Met Office,17/07/2019,11 SERVICES,CORPORATE,HAWK INCENTIVES LTD,429839,9555,238839422
BEIS,Met Office,17/07/2019,11 SERVICES,CORPORATE,HAWK INCENTIVES LTD,430284,8620.5,238839422
BEIS,Met Office,17/07/2019,11 SERVICES,CORPORATE,HAWK INCENTIVES LTD,430558,6042.75,238839422
BEIS,Met Office,31/07/2019,11 SERVICES,CORPORATE,HAWK INCENTIVES LTD,431143,6851.25,238839422
BEIS,Met Office,31/07/2019,11 SERVICES,CORPORATE,HAWK INCENTIVES LTD,431144,4452,238839422
BEIS,Met Office,31/07/2019,11 SERVICES,OPERATIONS,HEASON TECHNOLOGY LTD,431112,35,945605411
BEIS,Met Office,03/07/2019,11 SERVICES,BUSINESS GROUP,HELIOS TECHNOLOGY LIMITED,429679,42478.43,681234148
BEIS,Met Office,09/07/2019,11 SERVICES,OPERATIONS,HOPSCOTCH CONSULTING,430140,2510,102099056
BEIS,Met Office,09/07/2019,11 SERVICES,OPERATIONS,HOPSCOTCH CONSULTING,430140,17310,102099056
BEIS,Met Office,18/07/2019,11 SERVICES,OPERATIONS,HOPSCOTCH CONSULTING,430141,6470.04,102099056
BEIS,Met Office,25/07/2019,11 SERVICES,GOVERNMENT SERVICES,HOPSCOTCH CONSULTING,430987,7000,102099056
BEIS,Met Office,17/07/2019,11 SERVICES,GOVERNMENT SERVICES,"IBL SOFTWARE ENGINEERING, SPOL S.R.O.",20373,6453.12,SK2020241883
BEIS,Met Office,17/07/2019,11 SERVICES,GOVERNMENT SERVICES,"IBL SOFTWARE ENGINEERING, SPOL S.R.O.",429368,1539.99,SK2020241883
BEIS,Met Office,17/07/2019,11 SERVICES,GOVERNMENT SERVICES,"IBL SOFTWARE ENGINEERING, SPOL S.R.O.",429370,10995.82,SK2020241883
BEIS,Met Office,12/07/2019,11 SERVICES,OPERATIONS,INK COPYWRITERS LTD,424643,7500,850847214
BEIS,Met Office,12/07/2019,11 SERVICES,OPERATIONS,INK COPYWRITERS LTD,424643,2250,850847214
BEIS,Met Office,18/07/2019,11 SERVICES,OPERATIONS,INK COPYWRITERS LTD,430681,450,850847214
BEIS,Met Office,04/07/2019,11 SERVICES,CHIEF FINANCIAL OFFICER,INTEROUTE COMMUNICATIONS LIMITED,429956,3800,832 7071 39
BEIS,Met Office,17/07/2019,11 SERVICES,CHIEF FINANCIAL OFFICER,INTEROUTE COMMUNICATIONS LIMITED,430590,3800,832 7071 39
BEIS,Met Office,31/07/2019,11 SERVICES,GOVERNMENT SERVICES,IT.COM,9508,5088.29,-
BEIS,Met Office,31/07/2019,11 SERVICES,GOVERNMENT SERVICES,JEREMY BENN ASSOCIATES LTD,430502,22279,665300941
BEIS,Met Office,09/07/2019,11 SERVICES,CHIEF FINANCIAL OFFICER,JERSEY TELECOM,430226,37.91,NOTVATREG
BEIS,Met Office,17/07/2019,11 SERVICES,GOVERNMENT SERVICES,KENYA METEOROLOGICAL DEPARTMENT,430375,1479,-
BEIS,Met Office,17/07/2019,11 SERVICES,GOVERNMENT SERVICES,KENYA METEOROLOGICAL DEPARTMENT,430376,567,-
BEIS,Met Office,18/07/2019,11 SERVICES,GOVERNMENT SERVICES,KENYA RED CROSS SOCIETY,430345,12369.7,-
BEIS,Met Office,17/07/2019,11 SERVICES,GOVERNMENT SERVICES,KENYA RED CROSS SOCIETY,430351,1339.68,-
BEIS,Met Office,25/07/2019,11 SERVICES,GOVERNMENT SERVICES,KENYA RED CROSS SOCIETY,430757,12369.7,-
BEIS,Met Office,03/07/2019,11 SERVICES,TECHNOLOGY,KNOWLEDGEABLE LTD,429718,5850,864 3662 03
BEIS,Met Office,05/07/2019,11 SERVICES,CORPORATE,Landmark Information Group Ltd,429633,92238.7,634509735
BEIS,Met Office,05/07/2019,11 SERVICES,CORPORATE,Landmark Information Group Ltd,430073,67646.2,634509735
BEIS,Met Office,05/07/2019,11 SERVICES,CORPORATE,Landmark Information Group Ltd,430074,-92238.7,634509735
BEIS,Met Office,04/07/2019,11 SERVICES,OPERATIONS,LEARNING TREE INTERNATIONAL LTD,429789,4555,245335568
BEIS,Met Office,02/07/2019,11 SERVICES,CHIEF FINANCIAL OFFICER,LICENCE BUREAU LTD,429783,95.6,820219467
BEIS,Met Office,05/07/2019,11 SERVICES,GOVERNMENT SERVICES,REDACTED PERSONAL DATA,429844,2248.59,-
BEIS,Met Office,01/07/2019,11 SERVICES,GOVERNMENT SERVICES,LONDON ECONOMICS LTD,429719,11592.58,769529863
BEIS,Met Office,19/07/2019,11 SERVICES,GOVERNMENT SERVICES,LONDON ECONOMICS LTD,430774,15456.78,769529863
BEIS,Met Office,12/07/2019,11 SERVICES,CHIEF FINANCIAL OFFICER,MANX TELECOM LTD,430363,53.21,3291912
BEIS,Met Office,12/07/2019,11 SERVICES,CORPORATE,MERKLE UK THREE LTD T/A MERKLE PERISCOPIX,430232,7783.33,843316243
BEIS,Met Office,03/07/2019,11 SERVICES,OPERATIONS,METOCEAN TELEMATICS LTD,9484,617.49,-
BEIS,Met Office,19/07/2019,11 SERVICES,CHIEF FINANCIAL OFFICER,METRIKUS LIMITED,430551,5205.48,321 8772 02
BEIS,Met Office,19/07/2019,11 SERVICES,CHIEF FINANCIAL OFFICER,METRIKUS LIMITED,430674,-5205.48,321 8772 02
BEIS,Met Office,19/07/2019,11 SERVICES,CHIEF FINANCIAL OFFICER,METRIKUS LIMITED,430785,2602.74,321 8772 02
BEIS,Met Office,12/07/2019,11 SERVICES,CORPORATE,MILLS AND SONS LTD,430334,404,808366053
BEIS,Met Office,01/07/2019,11 SERVICES,BUSINESS GROUP,MOMENTUM INCORPORATED,429697,13320,598958541
BEIS,Met Office,11/07/2019,11 SERVICES,BUSINESS GROUP,MOMENTUM INCORPORATED,430305,6660,598958541
BEIS,Met Office,30/07/2019,11 SERVICES,BUSINESS GROUP,MOMENTUM INCORPORATED,430824,6660,598958541
BEIS,Met Office,22/07/2019,11 SERVICES,CORPORATE,MOUNT CHARLES GROUP LTD,430784,1222,517116274
BEIS,Met Office,22/07/2019,11 SERVICES,CORPORATE,MOUNT CHARLES GROUP LTD,430784,395,517116274
BEIS,Met Office,22/07/2019,11 SERVICES,CORPORATE,MOUNT CHARLES GROUP LTD,430784,1222,517116274
BEIS,Met Office,31/07/2019,11 SERVICES,BUSINESS GROUP,MOUNT CHARLES GROUP LTD,430839,2252,517116274
BEIS,Met Office,22/07/2019,11 SERVICES,OPERATIONS,REDACTED PERSONAL DATA,430362,130.24,-
BEIS,Met Office,25/07/2019,11 SERVICES,CORPORATE,MYCSP LTD,430974,89.73,128754393
BEIS,Met Office,25/07/2019,11 SERVICES,CORPORATE,MYCSP LTD,430975,88.06,128754393
BEIS,Met Office,22/07/2019,11 SERVICES,BUSINESS GROUP,NATS (EN ROUTE) PLC,430822,297561,4.40E+11
BEIS,Met Office,17/07/2019,11 SERVICES,GOVERNMENT SERVICES,NHS DIGITAL,430581,5570,654434435
BEIS,Met Office,02/07/2019,11 SERVICES,GOVERNMENT SERVICES,NPL Management Ltd,428516,50000,207523388
BEIS,Met Office,31/07/2019,11 SERVICES,OPERATIONS,NSSL GLOBAL LTD,9476,47.37,725151948
BEIS,Met Office,17/07/2019,11 SERVICES,OPERATIONS,NSSL GLOBAL LTD,9485,47.69,725151948
BEIS,Met Office,17/07/2019,11 SERVICES,OPERATIONS,NSSL GLOBAL LTD,9486,47.69,725151948
BEIS,Met Office,01/07/2019,11 SERVICES,OPERATIONS,OLD FROG LTD,429635,2820,642591532
BEIS,Met Office,29/07/2019,11 SERVICES,OPERATIONS,Osprey Consulting Services Ltd,431046,4250,GB898003206
BEIS,Met Office,05/07/2019,11 SERVICES,GOVERNMENT SERVICES,PAUL WATKISS ASSOCIATES LTD,430066,3867.53,869587641
BEIS,Met Office,16/07/2019,11 SERVICES,GOVERNMENT SERVICES,PDC INSPIRATION LTD,429481,1257.7,942778876
BEIS,Met Office,01/07/2019,11 SERVICES,CORPORATE,PSYCHOLOGICA,429468,100,143530636
BEIS,Met Office,01/07/2019,11 SERVICES,CORPORATE,PSYCHOLOGICA,429469,250,143530636
BEIS,Met Office,29/07/2019,11 SERVICES,OPERATIONS,QA LTD,430662,6351,864455303
BEIS,Met Office,18/07/2019,11 SERVICES,GOVERNMENT SERVICES,RESURGENCE URBAN RESILIENCE TRUST,430729,36871,259524184
BEIS,Met Office,05/07/2019,11 SERVICES,CHIEF FINANCIAL OFFICER,Reuters Ltd,429821,1718.7,397000555
BEIS,Met Office,09/07/2019,11 SERVICES,STRATEGIC INVESTMENT,RISUAL LIMITED,430139,850,864480893
BEIS,Met Office,31/07/2019,11 SERVICES,STRATEGIC INVESTMENT,RISUAL LIMITED,431193,850,864480893
BEIS,Met Office,30/07/2019,11 SERVICES,GOVERNMENT SERVICES,REDACTED PERSONAL DATA,427406,2200,-
BEIS,Met Office,09/07/2019,11 SERVICES,GOVERNMENT SERVICES,REDACTED PERSONAL DATA,430189,4600,-
BEIS,Met Office,30/07/2019,11 SERVICES,GOVERNMENT SERVICES,REDACTED PERSONAL DATA,431073,-1711.46,-
BEIS,Met Office,18/07/2019,11 SERVICES,OPERATIONS,ROWE IT LTD,430034,29017.5,924964394
BEIS,Met Office,05/07/2019,11 SERVICES,GOVERNMENT SERVICES,ROWE IT LTD,430037,12309.78,924964394
BEIS,Met Office,05/07/2019,11 SERVICES,GOVERNMENT SERVICES,ROWE IT LTD,430047,21037.83,924964394
BEIS,Met Office,10/07/2019,11 SERVICES,GOVERNMENT SERVICES,S & G IND�STRIA E COM�RCIO DE ALIMENTOS LTDA,9492,1466.05,-
BEIS,Met Office,05/07/2019,11 SERVICES,TECHNOLOGY,SERCO LIMITED,429334,31800,207523388
BEIS,Met Office,05/07/2019,11 SERVICES,CHIEF FINANCIAL OFFICER,Siemens Plc,429957,602.82,GB 927 317 516
BEIS,Met Office,24/07/2019,11 SERVICES,CORPORATE,SODEXO MOT SOL UK  LTD (CHILDCARE RECEIPTS),430835,763.15,733644335
BEIS,Met Office,09/07/2019,11 SERVICES,OPERATIONS,SOFTCAT LTD,430049,1445.58,491848503
BEIS,Met Office,01/07/2019,11 SERVICES,CORPORATE,SOURCE COACHING CONSULTANCY,429614,2125,170422048
BEIS,Met Office,12/07/2019,11 SERVICES,BUSINESS GROUP,SPOKE (INTERACTIVE) LTD,430448,700,840156451
BEIS,Met Office,01/07/2019,11 SERVICES,CORPORATE,SPRUCE CONSULTING,428997,1418,724384923
BEIS,Met Office,01/07/2019,11 SERVICES,TECHNOLOGY,SSE CONTRACTING LTD,429617,9817.36,570118464
BEIS,Met Office,25/07/2019,11 SERVICES,TECHNOLOGY,SSE CONTRACTING LTD,430973,9817.36,570118464
BEIS,Met Office,16/07/2019,11 SERVICES,CHIEF FINANCIAL OFFICER,ST JOHN AMBULANCE,430054,376,564553916
BEIS,Met Office,31/07/2019,11 SERVICES,TECHNOLOGY,STRATA SERVICE SOLUTIONS LTD,431204,500,195632675
BEIS,Met Office,11/07/2019,11 SERVICES,CHIEF FINANCIAL OFFICER,SURE (GUERNSEY) LTD,430308,2736.6,NOTVAT
BEIS,Met Office,11/07/2019,11 SERVICES,CHIEF FINANCIAL OFFICER,SURE SOUTH ATLANTIC LTD,430343,973.75,-
BEIS,Met Office,12/07/2019,11 SERVICES,CHIEF FINANCIAL OFFICER,SURE SOUTH ATLANTIC LTD,430344,9884.51,-
BEIS,Met Office,01/07/2019,11 SERVICES,CORPORATE,SWANTECH LOGISTICS LTD,429678,842.5,769332401
BEIS,Met Office,29/07/2019,11 SERVICES,CORPORATE,SWANTECH LOGISTICS LTD,429780,2820,769332401
BEIS,Met Office,31/07/2019,11 SERVICES,CORPORATE,SWANTECH LOGISTICS LTD,431140,2400,769332401
BEIS,Met Office,02/07/2019,11 SERVICES,TECHNOLOGY,SYNTHESYS SYSTEMS ENGINEERS LTD,429809,1550,499309492
BEIS,Met Office,12/07/2019,11 SERVICES,CHIEF FINANCIAL OFFICER,TELEFONICA O2 UK LIMITED,430371,297.55,778603785
BEIS,Met Office,12/07/2019,11 SERVICES,CHIEF FINANCIAL OFFICER,TELEFONICA O2 UK LIMITED,430374,6869.52,778603785
BEIS,Met Office,25/07/2019,11 SERVICES,CHIEF FINANCIAL OFFICER,TELIA FINLAND OYJ,20638,160.11,FI14756079
BEIS,Met Office,31/07/2019,11 SERVICES,CHIEF FINANCIAL OFFICER,TELIA FINLAND OYJ,20639,195.61,FI14756079
BEIS,Met Office,11/07/2019,11 SERVICES,OPERATIONS,THE APP BUSINESS LIMITED (TAB),430281,4750,238263364
BEIS,Met Office,29/07/2019,11 SERVICES,CORPORATE,THE RED THREAD PARTNERSHIP LTD,431066,3000,127648984
BEIS,Met Office,26/07/2019,11 SERVICES,OPERATIONS,Trinity House,431017,141406.27,243120414
BEIS,Met Office,05/07/2019,11 SERVICES,TECHNOLOGY,UKCLOUD LTD,428996,1580.5,172647982
BEIS,Met Office,12/07/2019,11 SERVICES,TECHNOLOGY,UKCLOUD LTD,430361,1635.54,172647982
BEIS,Met Office,05/07/2019,11 SERVICES,CHIEF FINANCIAL OFFICER,UKRI,429544,62.52,GB287461957
BEIS,Met Office,25/07/2019,11 SERVICES,GOVERNMENT SERVICES,UKRI,429546,72757,GB287461957
BEIS,Met Office,05/07/2019,11 SERVICES,GOVERNMENT SERVICES,UKRI,429560,86866.76,GB287461957
BEIS,Met Office,05/07/2019,11 SERVICES,GOVERNMENT SERVICES,ULTRA ELECTRONICS LTD NUCLEAR CONTROL SYSTEMS,425680,9575.47,123340754
BEIS,Met Office,12/07/2019,11 SERVICES,GOVERNMENT SERVICES,ULTRA ELECTRONICS LTD NUCLEAR CONTROL SYSTEMS,430283,217332.25,123340754
BEIS,Met Office,12/07/2019,11 SERVICES,GOVERNMENT SERVICES,ULTRA ELECTRONICS LTD NUCLEAR CONTROL SYSTEMS,430285,7242.95,123340754
BEIS,Met Office,12/07/2019,11 SERVICES,GOVERNMENT SERVICES,ULTRA ELECTRONICS LTD NUCLEAR CONTROL SYSTEMS,430286,9575.47,123340754
BEIS,Met Office,17/07/2019,11 SERVICES,SCIENCE,UNIVERSIDAD TECNOLOGICA NACIONAL,20547,1251.37,-
BEIS,Met Office,11/07/2019,11 SERVICES,CORPORATE,UNIVERSITY OF EXETER,424735,-6180,142047795
BEIS,Met Office,11/07/2019,11 SERVICES,CORPORATE,UNIVERSITY OF EXETER,424736,-5150,142047795
BEIS,Met Office,11/07/2019,11 SERVICES,CORPORATE,UNIVERSITY OF EXETER,424737,6180,142047795
BEIS,Met Office,17/07/2019,11 SERVICES,GOVERNMENT SERVICES,UNIVERSITY OF EXETER,429335,40771.26,142047795
BEIS,Met Office,11/07/2019,11 SERVICES,SCIENCE,UNIVERSITY OF EXETER,429898,18500,142047795
BEIS,Met Office,24/07/2019,11 SERVICES,GOVERNMENT SERVICES,University Of Reading,427903,7725.26,200012659
BEIS,Met Office,15/07/2019,11 SERVICES,GOVERNMENT SERVICES,University Of Reading,430379,463.86,200012659
BEIS,Met Office,10/07/2019,11 SERVICES,SCIENCE,University Of The Witwatersrand,20522,4027.64,4390128942
BEIS,Met Office,09/07/2019,11 SERVICES,OPERATIONS,UNIVERSITY OF WORCESTER,430149,446.9,100103412
BEIS,Met Office,11/07/2019,11 SERVICES,BUSINESS GROUP,VAISALA LTD,425950,7020,336100011
BEIS,Met Office,11/07/2019,11 SERVICES,BUSINESS GROUP,VAISALA LTD,425950,7019.27,336100011
BEIS,Met Office,11/07/2019,11 SERVICES,BUSINESS GROUP,VAISALA LTD,425950,5040,336100011
BEIS,Met Office,11/07/2019,11 SERVICES,BUSINESS GROUP,VAISALA LTD,425950,1400,336100011
BEIS,Met Office,11/07/2019,11 SERVICES,BUSINESS GROUP,VAISALA LTD,425950,1400,336100011
BEIS,Met Office,11/07/2019,11 SERVICES,BUSINESS GROUP,VAISALA LTD,425950,7069.09,336100011
BEIS,Met Office,11/07/2019,11 SERVICES,BUSINESS GROUP,VAISALA LTD,425950,4320,336100011
BEIS,Met Office,11/07/2019,11 SERVICES,BUSINESS GROUP,VAISALA LTD,425950,1200,336100011
BEIS,Met Office,11/07/2019,11 SERVICES,BUSINESS GROUP,VAISALA LTD,425950,1200,336100011
BEIS,Met Office,11/07/2019,11 SERVICES,BUSINESS GROUP,VAISALA LTD,425950,4148.73,336100011
BEIS,Met Office,11/07/2019,11 SERVICES,BUSINESS GROUP,VAISALA LTD,425950,2880,336100011
BEIS,Met Office,11/07/2019,11 SERVICES,BUSINESS GROUP,VAISALA LTD,425950,800,336100011
BEIS,Met Office,11/07/2019,11 SERVICES,BUSINESS GROUP,VAISALA LTD,425950,800,336100011
BEIS,Met Office,11/07/2019,11 SERVICES,BUSINESS GROUP,VAISALA LTD,425950,12346.18,336100011
BEIS,Met Office,11/07/2019,11 SERVICES,BUSINESS GROUP,VAISALA LTD,425950,8640,336100011
BEIS,Met Office,11/07/2019,11 SERVICES,BUSINESS GROUP,VAISALA LTD,425950,2400,336100011
BEIS,Met Office,11/07/2019,11 SERVICES,BUSINESS GROUP,VAISALA LTD,425950,2400,336100011
BEIS,Met Office,11/07/2019,11 SERVICES,BUSINESS GROUP,VAISALA LTD,425950,4812.73,336100011
BEIS,Met Office,11/07/2019,11 SERVICES,BUSINESS GROUP,VAISALA LTD,425950,2880,336100011
BEIS,Met Office,11/07/2019,11 SERVICES,BUSINESS GROUP,VAISALA LTD,425950,800,336100011
BEIS,Met Office,11/07/2019,11 SERVICES,BUSINESS GROUP,VAISALA LTD,425950,800,336100011
BEIS,Met Office,11/07/2019,11 SERVICES,BUSINESS GROUP,VAISALA LTD,428965,6700,336100011
BEIS,Met Office,31/07/2019,11 SERVICES,GOVERNMENT SERVICES,VAISALA LTD,431195,38543.14,336100011
BEIS,Met Office,15/07/2019,11 SERVICES,CORPORATE,VALERIE WARK ASSOCIATES LIMITED,430144,3182.7,727398007
BEIS,Met Office,02/07/2019,11 SERVICES,CHIEF FINANCIAL OFFICER,VIRGIN MEDIA BUSINESS,429685,70,591819014
BEIS,Met Office,31/07/2019,11 SERVICES,CHIEF FINANCIAL OFFICER,VIRGIN MEDIA BUSINESS,431113,1738.36,591819014
BEIS,Met Office,31/07/2019,11 SERVICES,CHIEF FINANCIAL OFFICER,VIRGIN MEDIA BUSINESS,431114,179.43,591819014
BEIS,Met Office,05/07/2019,11 SERVICES,OPERATIONS,VOLKSWAGEN GROUP LEASING,429798,3924.25,BG745963883
BEIS,Met Office,05/07/2019,11 SERVICES,OPERATIONS,VOLKSWAGEN GROUP LEASING,429799,3924.25,BG745963883
BEIS,Met Office,05/07/2019,11 SERVICES,OPERATIONS,VOLKSWAGEN GROUP LEASING,429800,3924.25,BG745963883
BEIS,Met Office,05/07/2019,11 SERVICES,OPERATIONS,VOLKSWAGEN GROUP LEASING,429801,3924.25,BG745963883
BEIS,Met Office,05/07/2019,11 SERVICES,OPERATIONS,VOLKSWAGEN GROUP LEASING,429807,3924.25,BG745963883
BEIS,Met Office,05/07/2019,11 SERVICES,OPERATIONS,VOLKSWAGEN GROUP LEASING,429851,3924.25,BG745963883
BEIS,Met Office,01/07/2019,11 SERVICES,GOVERNMENT SERVICES,WALNUT UNLIMITED LIMITED,429632,2825,648857968
BEIS,Met Office,17/07/2019,11 SERVICES,GOVERNMENT SERVICES,WALNUT UNLIMITED LIMITED,430649,2825,648857968
BEIS,Met Office,12/07/2019,11 SERVICES,CHIEF FINANCIAL OFFICER,WEBEX COMMUNICATIONS UK LTD,430455,2856.49,815974302
BEIS,Met Office,09/07/2019,11 SERVICES,OPERATIONS,WESCOL LTD,429958,10,100293524
BEIS,Met Office,04/07/2019,11 SERVICES,TECHNOLOGY,WIREFAST LTD,429826,1282.3,749536001
BEIS,Met Office,04/07/2019,11 SERVICES,TECHNOLOGY,WIREFAST LTD,429826,3717.86,749536001
BEIS,Met Office,04/07/2019,11 SERVICES,TECHNOLOGY,WIREFAST LTD,429827,2155.08,749536001
BEIS,Met Office,03/07/2019,11 SERVICES,OPERATIONS,WORLDPAY (UK) LTD,429863,22.85,991280207
BEIS,Met Office,24/07/2019,11 SERVICES,OPERATIONS,WORLDPAY LTD,430740,730.91,991280207
BEIS,Met Office,25/07/2019,11 SERVICES,CHIEF FINANCIAL OFFICER,XUPER,430880,216,316677090
BEIS,Met Office,25/07/2019,11 SERVICES,CHIEF FINANCIAL OFFICER,XUPER,430880,504,316677090
BEIS,Met Office,25/07/2019,11 SERVICES,CHIEF FINANCIAL OFFICER,XUPER,430880,825,316677090
BEIS,Met Office,25/07/2019,11 SERVICES,CHIEF FINANCIAL OFFICER,XUPER,430880,720,316677090
BEIS,Met Office,25/07/2019,11 SERVICES,CHIEF FINANCIAL OFFICER,XUPER,430880,720,316677090
BEIS,Met Office,25/07/2019,11 SERVICES,CHIEF FINANCIAL OFFICER,XUPER,430880,255,316677090
BEIS,Met Office,25/07/2019,11 SERVICES,CHIEF FINANCIAL OFFICER,XUPER,430880,255,316677090
BEIS,Met Office,25/07/2019,11 SERVICES,CHIEF FINANCIAL OFFICER,XUPER,430880,255,316677090
BEIS,Met Office,25/07/2019,11 SERVICES,CHIEF FINANCIAL OFFICER,XUPER,430880,255,316677090
BEIS,Met Office,25/07/2019,11 SERVICES,CHIEF FINANCIAL OFFICER,XUPER,430880,255,316677090
BEIS,Met Office,25/07/2019,11 SERVICES,CHIEF FINANCIAL OFFICER,XUPER,430880,255,316677090
BEIS,Met Office,25/07/2019,11 SERVICES,CHIEF FINANCIAL OFFICER,XUPER,430880,255,316677090
BEIS,Met Office,25/07/2019,11 SERVICES,CHIEF FINANCIAL OFFICER,XUPER,430880,2412.75,316677090
BEIS,Met Office,25/07/2019,11 SERVICES,CHIEF FINANCIAL OFFICER,XUPER,430880,255,316677090
BEIS,Met Office,25/07/2019,11 SERVICES,CHIEF FINANCIAL OFFICER,XUPER,430880,255,316677090
BEIS,Met Office,25/07/2019,11 SERVICES,CHIEF FINANCIAL OFFICER,XUPER,430880,720,316677090
BEIS,Met Office,25/07/2019,11 SERVICES,CHIEF FINANCIAL OFFICER,XUPER,430880,720,316677090
BEIS,Met Office,25/07/2019,11 SERVICES,CHIEF FINANCIAL OFFICER,XUPER,430880,720,316677090
BEIS,Met Office,25/07/2019,11 SERVICES,CHIEF FINANCIAL OFFICER,XUPER,430880,660,316677090
BEIS,Met Office,25/07/2019,11 SERVICES,CHIEF FINANCIAL OFFICER,XUPER,430880,720,316677090
BEIS,Met Office,25/07/2019,11 SERVICES,CHIEF FINANCIAL OFFICER,XUPER,430880,450,316677090
BEIS,Met Office,02/07/2019,12 INTERNATIONAL,OPERATIONS,APPLIED SATELLITE TECHNOLOGY SYSTEMS LTD,429320,32.8,720108683
BEIS,Met Office,22/07/2019,12 INTERNATIONAL,OPERATIONS,APPLIED SATELLITE TECHNOLOGY SYSTEMS LTD,430735,33.2,720108683
BEIS,Met Office,03/07/2019,12 INTERNATIONAL,OPERATIONS,KENYA METEOROLOGICAL DEPARTMENT,429720,1040.11,-
BEIS,Met Office,03/07/2019,12 INTERNATIONAL,OPERATIONS,REDACTED PERSONAL DATA,9493,2745.44,-
BEIS,Met Office,03/07/2019,12 INTERNATIONAL,OPERATIONS,MYACORN LTD,429785,5000,-
BEIS,Met Office,05/07/2019,13 MISCELLANEOUS,TECHNOLOGY,A I MEDIA,429797,1533,994262974
BEIS,Met Office,04/07/2019,13 MISCELLANEOUS,GOVERNMENT SERVICES,ABOUT PRESENTATION LTD,429996,5174,619895287
BEIS,Met Office,16/07/2019,13 MISCELLANEOUS,OTHER,ADVANCE HE,430314,2666.67,GB 152 1219 50
BEIS,Met Office,24/07/2019,13 MISCELLANEOUS,SCIENCE,AIR LIQUIDE UK LTD,428697,80.06,644754027
BEIS,Met Office,17/07/2019,13 MISCELLANEOUS,CHIEF FINANCIAL OFFICER,REDACTED PERSONAL DATA,430610,149,NOTVATREG
BEIS,Met Office,16/07/2019,13 MISCELLANEOUS,CHIEF FINANCIAL OFFICER,ARTHUR J. GALLAGHER INSURANCE BROKERS LIMITED,430618,9223.52,GB484746209
BEIS,Met Office,16/07/2019,13 MISCELLANEOUS,CHIEF FINANCIAL OFFICER,ARTHUR J. GALLAGHER INSURANCE BROKERS LIMITED,430619,14000,GB484746209
BEIS,Met Office,16/07/2019,13 MISCELLANEOUS,CHIEF FINANCIAL OFFICER,ARTHUR J. GALLAGHER INSURANCE BROKERS LIMITED,430620,42000,GB484746209
BEIS,Met Office,16/07/2019,13 MISCELLANEOUS,CHIEF FINANCIAL OFFICER,ARTHUR J. GALLAGHER INSURANCE BROKERS LIMITED,430621,79296,GB484746209
BEIS,Met Office,16/07/2019,13 MISCELLANEOUS,CHIEF FINANCIAL OFFICER,ARTHUR J. GALLAGHER INSURANCE BROKERS LIMITED,430622,1464.96,GB484746209
BEIS,Met Office,16/07/2019,13 MISCELLANEOUS,CHIEF FINANCIAL OFFICER,ARTHUR J. GALLAGHER INSURANCE BROKERS LIMITED,430623,32600.96,GB484746209
BEIS,Met Office,16/07/2019,13 MISCELLANEOUS,CHIEF FINANCIAL OFFICER,ARTHUR J. GALLAGHER INSURANCE BROKERS LIMITED,430624,100973.6,GB484746209
BEIS,Met Office,16/07/2019,13 MISCELLANEOUS,CHIEF FINANCIAL OFFICER,ARTHUR J. GALLAGHER INSURANCE BROKERS LIMITED,430625,45783.07,GB484746209
BEIS,Met Office,09/07/2019,13 MISCELLANEOUS,GOVERNMENT SERVICES,AUBURN CREATIVE LTD,430200,300,833514344
BEIS,Met Office,12/07/2019,13 MISCELLANEOUS,OPERATIONS,BARSC,430287,350,-
BEIS,Met Office,05/07/2019,13 MISCELLANEOUS,CHIEF FINANCIAL OFFICER,BUSINESS STREAM,430040,239.29,945850885
BEIS,Met Office,02/07/2019,13 MISCELLANEOUS,CHIEF FINANCIAL OFFICER,CANON UK LTD,429773,7083.34,523797128
BEIS,Met Office,04/07/2019,13 MISCELLANEOUS,CHIEF FINANCIAL OFFICER,CANON UK LTD,429960,950.62,523797128
BEIS,Met Office,04/07/2019,13 MISCELLANEOUS,CHIEF FINANCIAL OFFICER,CANON UK LTD,429960,75.21,523797128
BEIS,Met Office,04/07/2019,13 MISCELLANEOUS,CHIEF FINANCIAL OFFICER,CANON UK LTD,429960,78.77,523797128
BEIS,Met Office,04/07/2019,13 MISCELLANEOUS,CHIEF FINANCIAL OFFICER,CANON UK LTD,429960,85.14,523797128
BEIS,Met Office,08/07/2019,13 MISCELLANEOUS,CHIEF FINANCIAL OFFICER,CANON UK LTD,430055,145.66,523797128
BEIS,Met Office,10/07/2019,13 MISCELLANEOUS,CHIEF FINANCIAL OFFICER,CANON UK LTD,430224,644.06,523797128
BEIS,Met Office,10/07/2019,13 MISCELLANEOUS,CHIEF FINANCIAL OFFICER,CANON UK LTD,430224,25.44,523797128
BEIS,Met Office,10/07/2019,13 MISCELLANEOUS,CHIEF FINANCIAL OFFICER,CANON UK LTD,430224,59.34,523797128
BEIS,Met Office,10/07/2019,13 MISCELLANEOUS,CHIEF FINANCIAL OFFICER,CANON UK LTD,430224,7.19,523797128
BEIS,Met Office,10/07/2019,13 MISCELLANEOUS,CHIEF FINANCIAL OFFICER,CANON UK LTD,430224,14.59,523797128
BEIS,Met Office,10/07/2019,13 MISCELLANEOUS,CHIEF FINANCIAL OFFICER,CANON UK LTD,430224,33.33,523797128
BEIS,Met Office,10/07/2019,13 MISCELLANEOUS,CHIEF FINANCIAL OFFICER,CANON UK LTD,430224,17.94,523797128
BEIS,Met Office,02/07/2019,13 MISCELLANEOUS,BUSINESS GROUP,DECOM NORTH SEA,429013,1140,986674743
BEIS,Met Office,08/07/2019,13 MISCELLANEOUS,CHIEF FINANCIAL OFFICER,DWYFOR COFFEE COMPANY LTD,426003,-29.4,559811116
BEIS,Met Office,08/07/2019,13 MISCELLANEOUS,CHIEF FINANCIAL OFFICER,DWYFOR COFFEE COMPANY LTD,429345,19.47,559811116
BEIS,Met Office,08/07/2019,13 MISCELLANEOUS,CHIEF FINANCIAL OFFICER,DWYFOR COFFEE COMPANY LTD,430116,-7.35,559811116
BEIS,Met Office,08/07/2019,13 MISCELLANEOUS,CHIEF FINANCIAL OFFICER,DWYFOR COFFEE COMPANY LTD,430117,30.18,559811116
BEIS,Met Office,08/07/2019,13 MISCELLANEOUS,CHIEF FINANCIAL OFFICER,DWYFOR COFFEE COMPANY LTD,430118,30.18,559811116
BEIS,Met Office,02/07/2019,13 MISCELLANEOUS,CHIEF FINANCIAL OFFICER,EAST ANGLIAN WATER COOLER CO,429778,17.6,676668178
BEIS,Met Office,03/07/2019,13 MISCELLANEOUS,CHIEF FINANCIAL OFFICER,EDEN SPRINGS UK LTD,429831,538.48,232160411
BEIS,Met Office,24/07/2019,13 MISCELLANEOUS,OPERATIONS,EXETER GOLF & COUNTRY CLUB - NO 2 ACCOUNT,430810,980,141085693
BEIS,Met Office,24/07/2019,13 MISCELLANEOUS,OPERATIONS,EXETER GOLF & COUNTRY CLUB - NO 2 ACCOUNT,430813,632.5,141085693
BEIS,Met Office,15/07/2019,13 MISCELLANEOUS,GOVERNMENT SERVICES,MILLS AND SONS LTD,430331,221,808366053
BEIS,Met Office,15/07/2019,13 MISCELLANEOUS,CHIEF FINANCIAL OFFICER,POSTURITE (UK) LTD,426213,28.49,583565114
BEIS,Met Office,11/07/2019,13 MISCELLANEOUS,CHIEF FINANCIAL OFFICER,POSTURITE (UK) LTD,427139,249.99,583565114
BEIS,Met Office,01/07/2019,13 MISCELLANEOUS,CHIEF FINANCIAL OFFICER,POSTURITE (UK) LTD,429610,51.66,583565114
BEIS,Met Office,01/07/2019,13 MISCELLANEOUS,CHIEF FINANCIAL OFFICER,POSTURITE (UK) LTD,429668,42.1,583565114
BEIS,Met Office,11/07/2019,13 MISCELLANEOUS,CHIEF FINANCIAL OFFICER,POSTURITE (UK) LTD,430075,101.03,583565114
BEIS,Met Office,15/07/2019,13 MISCELLANEOUS,CHIEF FINANCIAL OFFICER,POSTURITE (UK) LTD,430104,458.8,583565114
BEIS,Met Office,15/07/2019,13 MISCELLANEOUS,CHIEF FINANCIAL OFFICER,POSTURITE (UK) LTD,430105,553.04,583565114
BEIS,Met Office,15/07/2019,13 MISCELLANEOUS,CHIEF FINANCIAL OFFICER,POSTURITE (UK) LTD,430106,390,583565114
BEIS,Met Office,15/07/2019,13 MISCELLANEOUS,CHIEF FINANCIAL OFFICER,POSTURITE (UK) LTD,430107,189.1,583565114
BEIS,Met Office,15/07/2019,13 MISCELLANEOUS,CHIEF FINANCIAL OFFICER,POSTURITE (UK) LTD,430108,239.49,583565114
BEIS,Met Office,15/07/2019,13 MISCELLANEOUS,CHIEF FINANCIAL OFFICER,POSTURITE (UK) LTD,430109,36.55,583565114
BEIS,Met Office,15/07/2019,13 MISCELLANEOUS,CHIEF FINANCIAL OFFICER,POSTURITE (UK) LTD,430307,99.17,583565114
BEIS,Met Office,26/07/2019,13 MISCELLANEOUS,CHIEF FINANCIAL OFFICER,POSTURITE (UK) LTD,430353,-119.04,583565114
BEIS,Met Office,15/07/2019,13 MISCELLANEOUS,CHIEF FINANCIAL OFFICER,POSTURITE (UK) LTD,430354,-28.49,583565114
BEIS,Met Office,15/07/2019,13 MISCELLANEOUS,CHIEF FINANCIAL OFFICER,POSTURITE (UK) LTD,430461,98.62,583565114
BEIS,Met Office,15/07/2019,13 MISCELLANEOUS,CHIEF FINANCIAL OFFICER,POSTURITE (UK) LTD,430462,40.1,583565114
BEIS,Met Office,25/07/2019,13 MISCELLANEOUS,CHIEF FINANCIAL OFFICER,POSTURITE (UK) LTD,430852,3283.35,583565114
BEIS,Met Office,26/07/2019,13 MISCELLANEOUS,CHIEF FINANCIAL OFFICER,POSTURITE (UK) LTD,430853,582.8,583565114
BEIS,Met Office,26/07/2019,13 MISCELLANEOUS,CHIEF FINANCIAL OFFICER,POSTURITE (UK) LTD,430922,604.5,583565114
BEIS,Met Office,25/07/2019,13 MISCELLANEOUS,CHIEF FINANCIAL OFFICER,POSTURITE (UK) LTD,430989,101.64,583565114
BEIS,Met Office,10/07/2019,13 MISCELLANEOUS,SCIENCE,PRODUCT TECHNOLOGY PARTNERS LTD,423821,600,750667028
BEIS,Met Office,10/07/2019,13 MISCELLANEOUS,SCIENCE,PRODUCT TECHNOLOGY PARTNERS LTD,429593,-600,750667028
BEIS,Met Office,08/07/2019,13 MISCELLANEOUS,OPERATIONS,ROCKSURE SYSTEMS LTD,430050,1728,859951462
BEIS,Met Office,22/07/2019,13 MISCELLANEOUS,CHIEF FINANCIAL OFFICER,Scottish Government,430742,13.47,888842551
BEIS,Met Office,08/07/2019,13 MISCELLANEOUS,CHIEF FINANCIAL OFFICER,SELECTA UK LTD,430067,105.73,581705924
BEIS,Met Office,01/07/2019,13 MISCELLANEOUS,CORPORATE,THOMSON REUTERS (PROFESSIONAL) UK LTD,428691,19423.8,900548743
BEIS,Met Office,18/07/2019,13 MISCELLANEOUS,BUSINESS GROUP,TOTALJOBS GROUP LTD,426896,-10,235723565
BEIS,Met Office,17/07/2019,13 MISCELLANEOUS,BUSINESS GROUP,TOTALJOBS GROUP LTD,426975,280,235723565
BEIS,Met Office,18/07/2019,13 MISCELLANEOUS,BUSINESS GROUP,TOTALJOBS GROUP LTD,427969,290,235723565
BEIS,Met Office,15/07/2019,13 MISCELLANEOUS,CHIEF FINANCIAL OFFICER,TOTALJOBS GROUP LTD,430134,450,235723565
BEIS,Met Office,22/07/2019,13 MISCELLANEOUS,SCIENCE,UNIVERSITY OF CAMBRIDGE,430391,562.5,214222124
BEIS,Met Office,16/07/2019,13 MISCELLANEOUS,SCIENCE,UNIVERSITY OF CAMBRIDGE,430399,562.5,214222124
BEIS,Met Office,24/07/2019,13 MISCELLANEOUS,SCIENCE,UNIVERSITY OF EXETER,430611,562.5,142047795
BEIS,Met Office,24/07/2019,13 MISCELLANEOUS,SCIENCE,UNIVERSITY OF EXETER,430612,562.5,142047795
BEIS,Met Office,17/07/2019,13 MISCELLANEOUS,SCIENCE,UNIVERSITY OF EXETER,430613,562.5,142047795
BEIS,Met Office,17/07/2019,13 MISCELLANEOUS,SCIENCE,UNIVERSITY OF EXETER,430614,562.5,142047795
BEIS,Met Office,15/07/2019,13 MISCELLANEOUS,SCIENCE,University Of Leeds,430392,1250,613451470
BEIS,Met Office,16/07/2019,13 MISCELLANEOUS,SCIENCE,University Of Leeds,430498,1250,613451470
BEIS,Met Office,05/07/2019,13 MISCELLANEOUS,SCIENCE,UNIVERSITY OF OXFORD,429806,2000,125506730
BEIS,Met Office,05/07/2019,13 MISCELLANEOUS,SCIENCE,University Of Reading,430113,562.5,200012659
BEIS,Met Office,29/07/2019,13 MISCELLANEOUS,SCIENCE,University Of Southampton,431044,1125,568630414
BEIS,Met Office,11/07/2019,13 MISCELLANEOUS,SCIENCE,"WORLD FUEL SERVICES EUROPE, LTD",429937,2283.7,835972195
BEIS,Met Office,15/07/2019,CYCLESCHEME,OTHER,CYCLESCHEME LTD,429922,-833.33,850403556
BEIS,Met Office,15/07/2019,CYCLESCHEME,OTHER,CYCLESCHEME LTD,429923,-541.67,850403556
BEIS,Met Office,15/07/2019,CYCLESCHEME,OTHER,CYCLESCHEME LTD,430433,833.33,850403556
BEIS,Met Office,15/07/2019,CYCLESCHEME,OTHER,CYCLESCHEME LTD,430434,833.33,850403556
BEIS,Met Office,17/07/2019,CYCLESCHEME,OTHER,CYCLESCHEME LTD,430668,398.33,850403556
BEIS,Met Office,17/07/2019,CYCLESCHEME,OTHER,CYCLESCHEME LTD,430670,458.33,850403556
BEIS,Met Office,24/07/2019,CYCLESCHEME,OTHER,CYCLESCHEME LTD,430912,832.5,850403556
BEIS,Met Office,22/07/2019,FIXTURE & FITTINGS,CHIEF FINANCIAL OFFICER,BELL DECORATING GROUP LIMITED,430758,150,481234360
BEIS,Met Office,22/07/2019,FIXTURE & FITTINGS,CHIEF FINANCIAL OFFICER,CMD LTD,430854,4477.31,927231433
BEIS,Met Office,24/07/2019,FIXTURE & FITTINGS,CHIEF FINANCIAL OFFICER,COMPUTACENTER (UK) LTD,430889,419.69,490334648
BEIS,Met Office,24/07/2019,FIXTURE & FITTINGS,CHIEF FINANCIAL OFFICER,COMPUTACENTER (UK) LTD,430890,41.45,490334648
BEIS,Met Office,18/07/2019,FIXTURE & FITTINGS,CHIEF FINANCIAL OFFICER,D&G OFFICE SERVICES LTD,430609,135,272997547
BEIS,Met Office,22/07/2019,FIXTURE & FITTINGS,CHIEF FINANCIAL OFFICER,D&G OFFICE SERVICES LTD,430799,176.07,272997547
BEIS,Met Office,22/07/2019,FIXTURE & FITTINGS,CHIEF FINANCIAL OFFICER,D&G OFFICE SERVICES LTD,430799,176.08,272997547
BEIS,Met Office,25/07/2019,FIXTURE & FITTINGS,CHIEF FINANCIAL OFFICER,D&G OFFICE SERVICES LTD,430984,2094,272997547
BEIS,Met Office,05/07/2019,FIXTURE & FITTINGS,CHIEF FINANCIAL OFFICER,WAGSTAFF GROUP,429991,14084.19,-
BEIS,Met Office,10/07/2019,FIXTURE & FITTINGS,CHIEF FINANCIAL OFFICER,WAGSTAFF GROUP,430114,78.72,-
BEIS,Met Office,10/07/2019,FIXTURE & FITTINGS,CHIEF FINANCIAL OFFICER,WAGSTAFF GROUP,430114,1045.21,-
BEIS,Met Office,05/07/2019,FIXTURE & FITTINGS,CHIEF FINANCIAL OFFICER,WAGSTAFF GROUP,430115,39,-
BEIS,Met Office,05/07/2019,FIXTURE & FITTINGS,CHIEF FINANCIAL OFFICER,WAGSTAFF GROUP,430115,115.38,-
BEIS,Met Office,22/07/2019,FIXTURE & FITTINGS,CHIEF FINANCIAL OFFICER,WAGSTAFF GROUP,430647,492,-
BEIS,Met Office,19/07/2019,FIXTURE & FITTINGS,CHIEF FINANCIAL OFFICER,WAGSTAFF GROUP,430728,166.04,-
BEIS,Met Office,19/07/2019,FIXTURE & FITTINGS,CHIEF FINANCIAL OFFICER,WAGSTAFF GROUP,430728,650,-
BEIS,Met Office,19/07/2019,FIXTURE & FITTINGS,CHIEF FINANCIAL OFFICER,WAGSTAFF GROUP,430728,629.4,-
BEIS,Met Office,19/07/2019,FIXTURE & FITTINGS,CHIEF FINANCIAL OFFICER,WAGSTAFF GROUP,430728,96,-
BEIS,Met Office,19/07/2019,FIXTURE & FITTINGS,CHIEF FINANCIAL OFFICER,WAGSTAFF GROUP,430728,490,-
BEIS,Met Office,19/07/2019,FIXTURE & FITTINGS,CHIEF FINANCIAL OFFICER,WAGSTAFF GROUP,430728,346.14,-
BEIS,Met Office,19/07/2019,FIXTURE & FITTINGS,CHIEF FINANCIAL OFFICER,WAGSTAFF GROUP,430728,205,-
BEIS,Met Office,19/07/2019,FIXTURE & FITTINGS,CHIEF FINANCIAL OFFICER,WAGSTAFF GROUP,430728,171.43,-
BEIS,Met Office,19/07/2019,FIXTURE & FITTINGS,CHIEF FINANCIAL OFFICER,WAGSTAFF GROUP,430728,106.43,-
BEIS,Met Office,19/07/2019,FIXTURE & FITTINGS,CHIEF FINANCIAL OFFICER,WAGSTAFF GROUP,430728,945,-
BEIS,Met Office,19/07/2019,FIXTURE & FITTINGS,CHIEF FINANCIAL OFFICER,WAGSTAFF GROUP,430728,170,-
BEIS,Met Office,02/07/2019,INFORMATION TECHNOLOGY,OPERATIONS,Campbell Scientific Ltd,426825,638.25,428453933
BEIS,Met Office,02/07/2019,INFORMATION TECHNOLOGY,OPERATIONS,Campbell Scientific Ltd,426825,10545,428453933
BEIS,Met Office,02/07/2019,INFORMATION TECHNOLOGY,OPERATIONS,Campbell Scientific Ltd,426825,21,428453933
BEIS,Met Office,03/07/2019,INFORMATION TECHNOLOGY,STRATEGIC INVESTMENT,Campbell Scientific Ltd,428509,7495.2,428453933
BEIS,Met Office,03/07/2019,INFORMATION TECHNOLOGY,STRATEGIC INVESTMENT,Campbell Scientific Ltd,428509,993.6,428453933
BEIS,Met Office,03/07/2019,INFORMATION TECHNOLOGY,STRATEGIC INVESTMENT,Campbell Scientific Ltd,428509,799.2,428453933
BEIS,Met Office,03/07/2019,INFORMATION TECHNOLOGY,STRATEGIC INVESTMENT,Campbell Scientific Ltd,428509,4377.6,428453933
BEIS,Met Office,03/07/2019,INFORMATION TECHNOLOGY,STRATEGIC INVESTMENT,Campbell Scientific Ltd,428509,10535,428453933
BEIS,Met Office,03/07/2019,INFORMATION TECHNOLOGY,STRATEGIC INVESTMENT,Campbell Scientific Ltd,429340,4684.5,428453933
BEIS,Met Office,03/07/2019,INFORMATION TECHNOLOGY,STRATEGIC INVESTMENT,Campbell Scientific Ltd,429340,621,428453933
BEIS,Met Office,03/07/2019,INFORMATION TECHNOLOGY,STRATEGIC INVESTMENT,Campbell Scientific Ltd,429340,499.5,428453933
BEIS,Met Office,03/07/2019,INFORMATION TECHNOLOGY,STRATEGIC INVESTMENT,Campbell Scientific Ltd,429340,2736,428453933
BEIS,Met Office,03/07/2019,INFORMATION TECHNOLOGY,STRATEGIC INVESTMENT,Campbell Scientific Ltd,429340,6584.38,428453933
BEIS,Met Office,03/07/2019,INFORMATION TECHNOLOGY,STRATEGIC INVESTMENT,Campbell Scientific Ltd,429920,13168.75,428453933
BEIS,Met Office,03/07/2019,INFORMATION TECHNOLOGY,STRATEGIC INVESTMENT,Campbell Scientific Ltd,429920,9369,428453933
BEIS,Met Office,01/07/2019,INFORMATION TECHNOLOGY,TECHNOLOGY,COMPUTACENTER (UK) LTD,429596,12486,490334648
BEIS,Met Office,08/07/2019,INFORMATION TECHNOLOGY,TECHNOLOGY,COMPUTACENTER (UK) LTD,429774,335709.28,490334648
BEIS,Met Office,02/07/2019,INFORMATION TECHNOLOGY,OPERATIONS,LEMO (UK) LTD,428504,1426.5,193269240
BEIS,Met Office,31/07/2019,INFORMATION TECHNOLOGY,TECHNOLOGY,ORACLE CORPORATION UK LTD,431088,122241.39,391313073
BEIS,Met Office,31/07/2019,INFORMATION TECHNOLOGY,TECHNOLOGY,ORACLE CORPORATION UK LTD,431091,122241.39,391313073
BEIS,Met Office,25/07/2019,INFORMATION TECHNOLOGY,OPERATIONS,VAISALA OYJ,20520,21647.61,FI01244162
BEIS,Met Office,05/07/2019,PAYE AND VAT,OTHER,PETERS & MAY GLOBAL LOGISTICS LTD,429724,0,995183276
BEIS,Met Office,03/07/2019,PLANT AND EQUIPMENT,OPERATIONS,Hydrosphere UK Limited,429346,1723.5,641275549
BEIS,Met Office,03/07/2019,PLANT AND EQUIPMENT,OPERATIONS,Hydrosphere UK Limited,429346,1723.5,641275549
BEIS,Met Office,03/07/2019,PLANT AND EQUIPMENT,OPERATIONS,Hydrosphere UK Limited,429346,3447,641275549
BEIS,Met Office,12/07/2019,PLANT AND EQUIPMENT,CORPORATE,SWANTECH LOGISTICS LTD,430436,4507.5,769332401
BEIS,Met Office,31/07/2019,PLANT AND EQUIPMENT,CORPORATE,SWANTECH LOGISTICS LTD,431130,1000,769332401
BEIS,Met Office,15/07/2019,PLANT AND EQUIPMENT,CHIEF FINANCIAL OFFICER,ULTIM8 CONSTRUCTION LTD,430547,1336.07,998206374
BEIS,Met Office,31/07/2019,PLANT AND EQUIPMENT,BUSINESS GROUP,VAISALA OYJ,20530,20347.83,FI01244162
BEIS,Met Office,31/07/2019,PLANT AND EQUIPMENT,BUSINESS GROUP,VAISALA OYJ,20530,79653.25,FI01244162
BEIS,Met Office,11/07/2019,PLANT AND EQUIPMENT,CHIEF FINANCIAL OFFICER,XEIAD,430277,7194,811321091
BEIS,Met Office,15/07/2019,SOFTWARE LICENCES,OPERATIONS,DOT SOFTWARE LTD,429618,960,701022805
BEIS,Met Office,03/07/2019,STOCK,OPERATIONS,Campbell Scientific Ltd,429339,0,428453933
BEIS,Met Office,03/07/2019,STOCK,OPERATIONS,Campbell Scientific Ltd,429339,4104,428453933
BEIS,Met Office,03/07/2019,STOCK,OPERATIONS,FEINGERATEBAU K. FISCHER GMBH,20511,0,DE141292589
BEIS,Met Office,03/07/2019,STOCK,OPERATIONS,FEINGERATEBAU K. FISCHER GMBH,20511,762.77,DE141292589
BEIS,Met Office,10/07/2019,STOCK,OPERATIONS,FEINGERATEBAU K. FISCHER GMBH,20521,0,DE141292589
BEIS,Met Office,10/07/2019,STOCK,OPERATIONS,FEINGERATEBAU K. FISCHER GMBH,20521,85.37,DE141292589
BEIS,Met Office,25/07/2019,STOCK,OPERATIONS,FEINGERATEBAU K. FISCHER GMBH,20533,0,DE141292589
BEIS,Met Office,25/07/2019,STOCK,OPERATIONS,FEINGERATEBAU K. FISCHER GMBH,20533,3378.71,DE141292589
BEIS,Met Office,24/07/2019,STOCK,OPERATIONS,GH ZEAL LTD,430593,0,648929087
BEIS,Met Office,24/07/2019,STOCK,OPERATIONS,GH ZEAL LTD,430593,3300,648929087
BEIS,Met Office,24/07/2019,STOCK,OPERATIONS,GH ZEAL LTD,430821,0,648929087
BEIS,Met Office,24/07/2019,STOCK,OPERATIONS,GH ZEAL LTD,430821,3300,648929087
BEIS,Met Office,08/07/2019,STOCK,OPERATIONS,H & B SENSORS LTD,429896,0,321828666
BEIS,Met Office,08/07/2019,STOCK,OPERATIONS,H & B SENSORS LTD,429896,307.5,321828666
BEIS,Met Office,08/07/2019,STOCK,OPERATIONS,H & B SENSORS LTD,429896,5691,321828666
BEIS,Met Office,31/07/2019,STOCK,OPERATIONS,HEASON TECHNOLOGY LTD,431112,0,945605411
BEIS,Met Office,31/07/2019,STOCK,OPERATIONS,HEASON TECHNOLOGY LTD,431112,0,945605411
BEIS,Met Office,31/07/2019,STOCK,OPERATIONS,HEASON TECHNOLOGY LTD,431112,0,945605411
BEIS,Met Office,31/07/2019,STOCK,OPERATIONS,HEASON TECHNOLOGY LTD,431112,243,945605411
BEIS,Met Office,31/07/2019,STOCK,OPERATIONS,HEASON TECHNOLOGY LTD,431112,237,945605411
BEIS,Met Office,31/07/2019,STOCK,OPERATIONS,HEASON TECHNOLOGY LTD,431112,2670,945605411
BEIS,Met Office,31/07/2019,STOCK,OPERATIONS,METOCEAN TELEMATICS LTD,9501,606.93,-
BEIS,Met Office,03/07/2019,STOCK,OPERATIONS,VAISALA OYJ,20492,0,FI01244162
BEIS,Met Office,03/07/2019,STOCK,OPERATIONS,VAISALA OYJ,20492,0,FI01244162
BEIS,Met Office,03/07/2019,STOCK,OPERATIONS,VAISALA OYJ,20492,197.76,FI01244162
BEIS,Met Office,03/07/2019,STOCK,OPERATIONS,VAISALA OYJ,20492,847.52,FI01244162
BEIS,Met Office,31/07/2019,STOCK,OPERATIONS,VAISALA OYJ,20526,0,FI01244162
BEIS,Met Office,31/07/2019,STOCK,OPERATIONS,VAISALA OYJ,20526,12908.53,FI01244162
BEIS,Met Office,09/07/2019,STOCK,OPERATIONS,VWR INTERNATIONAL LTD,430133,0,823853225
BEIS,Met Office,09/07/2019,STOCK,OPERATIONS,VWR INTERNATIONAL LTD,430133,59.26,823853225
BEIS,Met Office,08/07/2019,STOCK,OPERATIONS,WESCOL LTD,429897,0,100293524
BEIS,Met Office,08/07/2019,STOCK,OPERATIONS,WESCOL LTD,429897,1023.36,100293524
BEIS,Met Office,09/07/2019,STOCK,OPERATIONS,WESCOL LTD,429958,0,100293524
BEIS,Met Office,09/07/2019,STOCK,OPERATIONS,WESCOL LTD,429958,255.84,100293524
BEIS,Met Office,25/07/2019,TRADE CREDITORS,OTHER,NATWEST COMMERCIAL CARDS DIVISION,430883,151120.93,N/A
